Workbook

Sheet Title sheet
C10: Levelised Cost Calculator for Distributed Energy Resources
C13: Authors: | D13: Aamir Zaman
D14: Nilima Dharanipragada
D15: Martin Scherfler
D16: Rohith C Unni
D17: Shiv Vembadi
C19: Version: | D19: v3.0, June 2022
C24: Acknowledgment This work forms part of the Sustainable Energy Transformation, Tamil Nadu (SET-TN) series of documents and activities. SET aims to facilitate higher clean energy deployment in the State by working with stakeholders in order to find sustainable and equitable solutions. SET is a collaborative initiative by Auroville Consulting (AVC), Citizen Consumer and civic Action Group (CAG), the World Resources Institute India (WRI).

Sheet How to use
B1: INTRODUCTION TO THE LEVELISED COST CALCULATOR
B3: The tool has been developed to calculate levelised cost of energy (LCOE), from renewable energy (RE) and Diesel Generator (DG) technlogies (orange sheets) and from energy storage (blue sheets). The sheet RE & DG LCOE calc calculates the LCOE for a RE & DG technology, based on inputs entered in the sheet RE & DG LCOE - Inputs & Results. The sheet LCOS calc contains the calculations for levelised cost of storage (LCOS), based on inputs entered in the sheet LCOS - Inputs & Results. ▪ LCOE can be calculated for Solar PV, Wind, Biomass, Bagasse, Biomass Gasifer, Biogas, Small Hydro and Diesel Generator. The references for default input values are provided in the sheet Reference values. ▪ LCOS can be calculated for two storage configurations: solar plus energy storage, and standalone energy storage. - LCOS is calculated based on detailed storage dynamics and bottom-up cost analysis. The methodology is applicable to any storage technology, such as lead acid battery, vanadium redox flow battery, hydrogen storage - with the correct input parameters. - The cost inputs are divided into following components: solar PV, inverter or power conversion system, and battery storage system. The battery storage systems cost inlcude the cost of battery pack (INR/kWh), cost of balance of system (BOS) (INR/kWh) and installation cost. Further, see LCOS - Inputs & Results for details on cost inputs for the battery energy storage system. - LCOS calculation takes into account the storage module replacement and inverter replacement at the end of their lives (the EPC and BOS costs for the energy storage system are assumed constant for replacement). The sheet Future LCOS can be used to project levelised cost of solar plus energy storage (LCOSS) up to 2030 based on assumed cost reduction curves in Cost projections sheet. Installation cost for battery storage system is assumed to escalate at the same rate as the operation and maintenance expenses. These projections don't take into account technological innovations that will lead to a step increase in performance characteristics, for example, increase in wafer size in solar PV or solid state Li-ion batteries.
B18: NOTES ON USING THE CALCULATOR
B20: ▪ Make sure Macros are enabled in the Security Settings ▪ Use the Inputs and Results sheets to enter the inputs. The levelised cost is displayed on the same sheet. ▪ Please go through comments added to cells, wherever applicable, for more details ▪ The RE & DG LCOE calc and LCOS calc sheets contains the levelised cost calculations ▪ In the case of Storage, the the debt repayment and depreciation calculations are considered seperately for the storage system, the inverter and the solar PV plant. ▪ In the RE & DG LCOE calc sheet, even though the various parameters are calculated for 50 years, the LCOE is calculated only considering the number of years of plant life: e.g., 20 years in the case of Biomass. ▪ In the LCOS calc sheet, for the configuration solar plus energy storage, the levelised cost corresponds to the plant life of the solar PV. ▪ For calculating depreciation, straight line method is used. The annual depreciation is calculated as a percentage of the net capital cost. ▪ In the case of battery storage system, the default depreciation rates for the storage system and for the inverter is such that the residual value (at the end of life) is equal to the input Salvage valu. ▪ The insurance is calculated as a perentage of the net asset value or is part of O&M expense, depending on the technology.

Sheet RE & DG LCOE - Inputs & Results
D2: SELECT TECHNOLOGY:
C11: INPUTS | H11: Diesel | J11: OUTPUTS
C12: Parameter | D12: Unit | E12: Value | J12: Parameter | K12: Unit | L12: Value
C14: General inputs
C15: System capital cost per kW | D15: INR/kW | E15: 8398.28 | J15: Gross capital cost | K15: INR | L15: =Capex_perkW*System_size -> 1074979.84
C16: Capital subsidy per kW | D16: INR/kW | E16: 1662.109 | J16: Net capital cost | K16: INR | L16: =(Capex_perkW-Capitalsubsidy_perkW)*System_size -> 862229.888
C17: Plant size | D17: kW | E17: 128 | J17: Equity | K17: INR | L17: =Net_capex*Equity_percentage -> 258668.9664
C18: Plant life | D18: years | E18: 15 | J18: Debt | K18: INR | L18: =Net_capex-Equity -> 603560.9216
C19: Capacity utilisation factor (CUF) | D19: % | E19: 0.75 | J19: Annual depreciation for first n1 years (on net capex) | K19: INR | L19: =Net_capex*Depreciationrate_n1years -> 57510.73353
C20: Auxiliary consumption | D20: % | E20: 0 | J20: Annual depreciation after n1 years (on net capex) | K20: INR | L20: =((Net_capex*(1-Salvage_value))-(Annual_depreciation_n1yearsnet*n1_years))/(Plant_life-n1_years) -> 
C21: Grid availability factor | D21: % | E21: 0
C22: Discount rate | D22: % | E22: 0.0867
C23: Equity | D23: % | E23: 0.3
C24: Return on equity | D24: % | E24: 0.156
C25: Loan tenure | D25: years | E25: 7
C26: Moratorium | D26: years | E26: 0.5
C27: Interest on loan | D27: % | E27: 0.1195
C28: Operation and Maintenance expenses in Year 1 | D28: INR/kW-yr | E28: 3058.47
C29: Annual increase in Operation and Maintenance expenses | D29: % | E29: 0.0695
C30: Insurance (% of depreciated asset value) | D30: % | E30: 0
C31: Working capital – O&M | D31: months | E31: 1
C32: Working capital – Receivables | D32: months | E32: 2
C33: Working capital – Maintenance spares | D33: % | E33: 0.15
C34: Interest on working capital | D34: % | E34: 0.1
C35: n1 years | D35: years | E35: 15
C36: Depreciation rate for the first n1 years | D36: % | E36: 0.0667
C37: Salvage value at end of life | D37: % | E37: 0
C39: Solar PV-specific inputs
C40: Annual solar panel degradation | D40: % | E40: 0
C42: Biomass/Bagasse -specific inputs
C43: Working capital – Fuel | D43: months | E43: 0
C44: Station heat rate | D44: kcal/kWh | E44: 0
C45: Calorific value | D45: kcal/kg | E45: 0
C46: Specific fuel consumption | D46: kg/kWh | E46: 0
C47: Fuel cost | D47: Rs/MT | E47: 0
C48: Fuel cost escalation | D48: % | E48: 0
C50: Diesel Generator-specific inputs
C51: Working capital - Fuels | D51: months | E51: 4
C52: Specific fuel consumption | D52: litres/hr | E52: 28.07
C53: Fuel Cost | D53: Rs/litre | E53: 90
C54: Fuel cost escalation | D54: % | E54: 0.08
C55: Degradation | D55: % | E55: 0.02

Sheet RE & DG LCOE calc
A1: This sheet contains the LCOE calculations.
J3: Year ----->
B4: Parameter | C4: Unit | D4: Cumulative | E4: 1 | F4: =E4+1 -> 2 | G4: =F4+1 -> 3 | H4: 4 | I4: 5 | J4: 6 | K4: 7 | L4: 8 | M4: 9 | N4: 10 | O4: 11 | P4: 12 | Q4: 13 | R4: 14 | S4: 15 | T4: 16 | U4: 17 | V4: 18 | W4: 19 | X4: 20 | Y4: 21 | Z4: 22 | AA4: 23 | AB4: 24 | AC4: 25 | AD4: =AC4+1 -> 26 | AE4: 27 | AF4: 28 | AG4: 29 | AH4: 30 | AI4: 31 | AJ4: 32 | AK4: 33 | AL4: 34 | AM4: 35 | AN4: =AM4+1 -> 36 | AO4: =AN4+1 -> 37 | AP4: =AO4+1 -> 38 | AQ4: =AP4+1 -> 39 | AR4: =AQ4+1 -> 40 | AS4: =AR4+1 -> 41 | AT4: =AS4+1 -> 42 | AU4: =AT4+1 -> 43 | AV4: =AU4+1 -> 44 | AW4: =AV4+1 -> 45 | AX4: =AW4+1 -> 46 | AY4: =AX4+1 -> 47 | AZ4: =AY4+1 -> 48 | BA4: =AZ4+1 -> 49 | BB4: =BA4+1 -> 50
B6: Cost of Generation
B7: Gross generation / kWh input (for Storage) | C7: kWh | E7: =System_size*24*365*CUF*IF(Technology="Biomass",(Grid_availability),IF(Technology="Diesel",(1),(Grid_availability))*IF(Technology="Solar PV",(1-SolarPV_degradation)^(E4-1),1)) -> 840960 | F7: 840960 | G7: 840960 | H7: 840960 | I7: 840960 | J7: 840960 | K7: 840960 | L7: 840960 | M7: 840960 | N7: 840960 | O7: 840960 | P7: 840960 | Q7: 840960 | R7: 840960 | S7: 840960 | T7: 840960 | U7: 840960 | V7: 840960 | W7: 840960 | X7: 840960 | Y7: 840960 | Z7: 840960 | AA7: 840960 | AB7: 840960 | AC7: 840960 | AD7: 840960 | AE7: 840960 | AF7: 840960 | AG7: 840960 | AH7: 840960 | AI7: 840960 | AJ7: 840960 | AK7: =System_size*24*365*CUF*IF(Technology="Biomass",(Grid_availability),IF(Technology="Diesel",(1),(Grid_availability))*IF(Technology="Solar PV",(1-SolarPV_degradation)^(AK4-1),1)) -> 840960 | AL7: 840960 | AM7: 840960 | AN7: 840960 | AO7: 840960 | AP7: 840960 | AQ7: 840960 | AR7: 840960 | AS7: 840960 | AT7: 840960 | AU7: 840960 | AV7: 840960 | AW7: 840960 | AX7: 840960 | AY7: 840960 | AZ7: 840960 | BA7: 840960 | BB7: 840960
B8: Net generation / kWh available (for Storage) | C8: kWh | E8: =E7-(E7*Aux_consumption) -> 840960 | F8: =F7-(F7*Aux_consumption) -> 840960 | G8: 840960 | H8: 840960 | I8: 840960 | J8: 840960 | K8: 840960 | L8: 840960 | M8: 840960 | N8: 840960 | O8: 840960 | P8: 840960 | Q8: 840960 | R8: 840960 | S8: 840960 | T8: 840960 | U8: 840960 | V8: 840960 | W8: 840960 | X8: 840960 | Y8: 840960 | Z8: 840960 | AA8: 840960 | AB8: 840960 | AC8: 840960 | AD8: 840960 | AE8: 840960 | AF8: 840960 | AG8: 840960 | AH8: 840960 | AI8: 840960 | AJ8: 840960 | AK8: 840960 | AL8: 840960 | AM8: 840960 | AN8: =AN7-(AN7*Aux_consumption) -> 840960 | AO8: 840960 | AP8: 840960 | AQ8: 840960 | AR8: 840960 | AS8: 840960 | AT8: 840960 | AU8: 840960 | AV8: 840960 | AW8: 840960 | AX8: 840960 | AY8: 840960 | AZ8: 840960 | BA8: 840960 | BB8: 840960
B9: Operation and Maintenance Expenses | C9: INR | E9: =OandM_year1*System_size -> 391484.16 | F9: =E9+(E9*OandM_escalation) -> 418692.3091 | G9: 447791.4246 | H9: 478912.9286 | I9: 512197.3772 | J9: 547795.0949 | K9: 585866.854 | L9: 626584.6003 | M9: 670132.23 | N9: 716706.42 | O9: 766517.5162 | P9: 819790.4836 | Q9: 876765.9222 | R9: 937701.1538 | S9: 1002871.384 | T9: 1072570.945 | U9: 1147114.626 | V9: 1226839.092 | W9: 1312104.409 | X9: 1403295.666 | Y9: 1500824.714 | Z9: 1605132.032 | AA9: 1716688.708 | AB9: 1835998.574 | AC9: 1963600.474 | AD9: 2100070.707 | AE9: 2246025.622 | AF9: 2402124.402 | AG9: 2569072.048 | AH9: 2747622.556 | AI9: 2938582.323 | AJ9: 3142813.795 | AK9: 3361239.353 | AL9: 3594845.488 | AM9: 3844687.25 | AN9: =AM9+(AM9*OandM_escalation) -> 4111893.014 | AO9: =AN9+(AN9*OandM_escalation) -> 4397669.578 | AP9: =AO9+(AO9*OandM_escalation) -> 4703307.614 | AQ9: =AP9+(AP9*OandM_escalation) -> 5030187.493 | AR9: =AQ9+(AQ9*OandM_escalation) -> 5379785.524 | AS9: =AR9+(AR9*OandM_escalation) -> 5753680.618 | AT9: =AS9+(AS9*OandM_escalation) -> 6153561.421 | AU9: =AT9+(AT9*OandM_escalation) -> 6581233.939 | AV9: =AU9+(AU9*OandM_escalation) -> 7038629.698 | AW9: =AV9+(AV9*OandM_escalation) -> 7527814.462 | AX9: =AW9+(AW9*OandM_escalation) -> 8050997.567 | AY9: =AX9+(AX9*OandM_escalation) -> 8610541.898 | AZ9: =AY9+(AY9*OandM_escalation) -> 9208974.56 | BA9: =AZ9+(AZ9*OandM_escalation) -> 9848998.292 | BB9: =BA9+(BA9*OandM_escalation) -> 10533503.67
B10: Insurance | C10: INR | E10: =Insurance*E43 -> 0 | F10: 0 | G10: 0 | H10: 0 | I10: 0 | J10: 0 | K10: 0 | L10: 0 | M10: 0 | N10: 0 | O10: 0 | P10: 0 | Q10: 0 | R10: 0 | S10: 0 | T10: 0 | AN10: =Insurance*AN43 -> 
B11: Depreciation (on gross capital cost) | E11: =IF(E4<=n1_years, Gross_capex*Depreciationrate_n1years, (Gross_capex*(1-Salvage_value)-Gross_capex*Depreciationrate_n1years*n1_years)/(Plant_life-n1_years)) -> 71701.15533 | F11: 71701.15533 | G11: 71701.15533 | H11: 71701.15533 | I11: 71701.15533 | J11: 71701.15533 | K11: 71701.15533 | L11: 71701.15533 | M11: 71701.15533 | N11: 71701.15533 | O11: 71701.15533 | P11: 71701.15533 | Q11: 71701.15533 | R11: 71701.15533 | S11: 71701.15533 | AK11: =IF(AK4<=n1_years, Gross_capex*Depreciationrate_n1years, (Gross_capex*(1-Salvage_value)-Gross_capex*Depreciationrate_n1years*n1_years)/(Plant_life-n1_years)) -> 
B12: Depreciation (on net capital cost) | C12: INR | E12: =IF(E4<=n1_years, Annual_depreciation_n1yearsnet, Annual_depreciation_aftern1net) -> 57510.73353 | F12: 57510.73353 | G12: 57510.73353 | H12: 57510.73353 | I12: 57510.73353 | J12: 57510.73353 | K12: 57510.73353 | L12: 57510.73353 | M12: 57510.73353 | N12: 57510.73353 | O12: 57510.73353 | P12: 57510.73353 | Q12: 57510.73353 | R12: 57510.73353 | S12: 57510.73353 | AN12: =IF(AN4<=n1_years, Annual_depreciation_n1yearsnet, Annual_depreciation_aftern1net) -> 
B13: Interest on Term Loan | C13: INR | E13: =E28 -> 72125.53013 | F13: 61029.29473 | G13: 49933.05932 | H13: 38836.82392 | I13: 27740.58851 | J13: 16644.35311 | K13: 5548.117702 | L13: -5548.117702 | M13: -5548.117702 | N13: -5548.117702 | O13: -5548.117702 | P13: -5548.117702 | Q13: -5548.117702 | R13: -5548.117702 | S13: -5548.117702 | T13: -5548.117702 | U13: -5548.117702 | V13: -5548.117702 | W13: -5548.117702 | X13: -5548.117702 | Y13: -5548.117702 | Z13: -5548.117702 | AA13: -5548.117702 | AB13: -5548.117702 | AC13: -5548.117702 | AD13: =AD28 -> -5548.117702 | AE13: -5548.117702 | AF13: -5548.117702 | AG13: -5548.117702 | AH13: -5548.117702 | AI13: -5548.117702 | AJ13: -5548.117702 | AK13: -5548.117702 | AL13: -5548.117702 | AM13: -5548.117702 | AN13: =AN28 -> -5548.117702 | AO13: -5548.117702 | AP13: -5548.117702 | AQ13: -5548.117702 | AR13: -5548.117702 | AS13: -5548.117702 | AT13: -5548.117702 | AU13: -5548.117702 | AV13: -5548.117702 | AW13: -5548.117702 | AX13: -5548.117702 | AY13: -5548.117702 | AZ13: -5548.117702 | BA13: -5548.117702 | BB13: -5548.117702
B14: Interest on Working Capital | C14: INR | E14: =E34+E37 -> 18644.75395 | F14: 19558.7236 | G14: 20549.06729 | H14: 21621.093 | I14: 22780.47763 | J14: 24033.29264 | K14: 25386.03143 | L14: 26845.63871 | M14: 28604.47909 | N14: 30485.55887 | O14: 32497.3737 | P14: 34649.00966 | Q14: 36950.18432 | R14: 39411.29062 | S14: 42043.44381 | AN14: =AN34+AN37 -> 
B15: Return on Equity | C15: INR | E15: =Equity*ROE -> 40352.35876 | F15: 40352.35876 | G15: 40352.35876 | H15: 40352.35876 | I15: 40352.35876 | J15: 40352.35876 | K15: 40352.35876 | L15: 40352.35876 | M15: 40352.35876 | N15: 40352.35876 | O15: 40352.35876 | P15: 40352.35876 | Q15: 40352.35876 | R15: 40352.35876 | S15: 40352.35876 | T15: 40352.35876 | U15: 40352.35876 | V15: 40352.35876 | W15: 40352.35876 | X15: 40352.35876 | Y15: 40352.35876 | Z15: 40352.35876 | AA15: 40352.35876 | AB15: 40352.35876 | AC15: 40352.35876 | AD15: 40352.35876 | AE15: 40352.35876 | AF15: 40352.35876 | AG15: 40352.35876 | AH15: 40352.35876 | AI15: 40352.35876 | AJ15: 40352.35876 | AK15: 40352.35876 | AL15: 40352.35876 | AM15: 40352.35876 | AN15: 40352.35876 | AO15: 40352.35876 | AP15: 40352.35876 | AQ15: 40352.35876 | AR15: 40352.35876 | AS15: 40352.35876 | AT15: 40352.35876 | AU15: 40352.35876 | AV15: 40352.35876 | AW15: 40352.35876 | AX15: 40352.35876 | AY15: 40352.35876 | AZ15: 40352.35876 | BA15: 40352.35876 | BB15: 40352.35876
B16: Fuel cost | C16: INR | E16: =IF(Technology="Biomass",(E7*'RE & DG LCOE - Inputs & Results'!$E$46*'RE & DG LCOE - Inputs & Results'!$E$47)/1000,IF(Technology="Diesel",(Dg_fuelcost*Dg_fuelconsumption_kgperkWh*24*365),0)) -> 22130388 | F16: =IF(Technology="Biomass",(E16+(E16*'RE & DG LCOE - Inputs & Results'!$E$48)),IF(Technology="Diesel",(E16+(E16*Dg_fuelcost_escalation)+(E16*Dg_degradation)),0)) -> 24343426.8 | G16: =IF(Technology="Biomass",(F16+(F16*'RE & DG LCOE - Inputs & Results'!$E$48)),IF(Technology="Diesel",(F16+(F16*Dg_fuelcost_escalation)+(F16*Dg_degradation)),0)) -> 26777769.48 | H16: =IF(Technology="Biomass",(G16+(G16*'RE & DG LCOE - Inputs & Results'!$E$48)),IF(Technology="Diesel",(G16+(G16*Dg_fuelcost_escalation)+(G16*Dg_degradation)),0)) -> 29455546.43 | I16: =IF(Technology="Biomass",(H16+(H16*'RE & DG LCOE - Inputs & Results'!$E$48)),IF(Technology="Diesel",(H16+(H16*Dg_fuelcost_escalation)+(H16*Dg_degradation)),0)) -> 32401101.07 | J16: =IF(Technology="Biomass",(I16+(I16*'RE & DG LCOE - Inputs & Results'!$E$48)),IF(Technology="Diesel",(I16+(I16*Dg_fuelcost_escalation)+(I16*Dg_degradation)),0)) -> 35641211.18 | K16: =IF(Technology="Biomass",(J16+(J16*'RE & DG LCOE - Inputs & Results'!$E$48)),IF(Technology="Diesel",(J16+(J16*Dg_fuelcost_escalation)+(J16*Dg_degradation)),0)) -> 39205332.3 | L16: =IF(Technology="Biomass",(K16+(K16*'RE & DG LCOE - Inputs & Results'!$E$48)),IF(Technology="Diesel",(K16+(K16*Dg_fuelcost_escalation)+(K16*Dg_degradation)),0)) -> 43125865.53 | M16: =IF(Technology="Biomass",(L16+(L16*'RE & DG LCOE - Inputs & Results'!$E$48)),IF(Technology="Diesel",(L16+(L16*Dg_fuelcost_escalation)+(L16*Dg_degradation)),0)) -> 47438452.08 | N16: =IF(Technology="Biomass",(M16+(M16*'RE & DG LCOE - Inputs & Results'!$E$48)),IF(Technology="Diesel",(M16+(M16*Dg_fuelcost_escalation)+(M16*Dg_degradation)),0)) -> 52182297.29 | O16: =IF(Technology="Biomass",(N16+(N16*'RE & DG LCOE - Inputs & Results'!$E$48)),IF(Technology="Diesel",(N16+(N16*Dg_fuelcost_escalation)+(N16*Dg_degradation)),0)) -> 57400527.01 | P16: =IF(Technology="Biomass",(O16+(O16*'RE & DG LCOE - Inputs & Results'!$E$48)),IF(Technology="Diesel",(O16+(O16*Dg_fuelcost_escalation)+(O16*Dg_degradation)),0)) -> 63140579.72 | Q16: =IF(Technology="Biomass",(P16+(P16*'RE & DG LCOE - Inputs & Results'!$E$48)),IF(Technology="Diesel",(P16+(P16*Dg_fuelcost_escalation)+(P16*Dg_degradation)),0)) -> 69454637.69 | R16: =IF(Technology="Biomass",(Q16+(Q16*'RE & DG LCOE - Inputs & Results'!$E$48)),IF(Technology="Diesel",(Q16+(Q16*Dg_fuelcost_escalation)+(Q16*Dg_degradation)),0)) -> 76400101.46 | S16: =IF(Technology="Biomass",(R16+(R16*'RE & DG LCOE - Inputs & Results'!$E$48)),IF(Technology="Diesel",(R16+(R16*Dg_fuelcost_escalation)+(R16*Dg_degradation)),0)) -> 84040111.6 | T16: =IF(Technology="Biomass",(S16+(S16*'RE & DG LCOE - Inputs & Results'!$E$48)),IF(Technology="Diesel",(S16+(S16*Dg_fuelcost_escalation)+(S16*Dg_degradation)),0)) -> 92444122.76 | U16: =IF(Technology="Biomass",(T16+(T16*'RE & DG LCOE - Inputs & Results'!$E$48)),IF(Technology="Diesel",(T16+(T16*Dg_fuelcost_escalation)+(T16*Dg_degradation)),0)) -> 101688535 | V16: =IF(Technology="Biomass",(U16+(U16*'RE & DG LCOE - Inputs & Results'!$E$48)),IF(Technology="Diesel",(U16+(U16*Dg_fuelcost_escalation)+(U16*Dg_degradation)),0)) -> 111857388.5 | W16: =IF(Technology="Biomass",(V16+(V16*'RE & DG LCOE - Inputs & Results'!$E$48)),IF(Technology="Diesel",(V16+(V16*Dg_fuelcost_escalation)+(V16*Dg_degradation)),0)) -> 123043127.4 | X16: =IF(Technology="Biomass",(W16+(W16*'RE & DG LCOE - Inputs & Results'!$E$48)),IF(Technology="Diesel",(W16+(W16*Dg_fuelcost_escalation)+(W16*Dg_degradation)),0)) -> 135347440.1 | Y16: =IF(Technology="Biomass",(X16+(X16*'RE & DG LCOE - Inputs & Results'!$E$48)),IF(Technology="Diesel",(X16+(X16*Dg_fuelcost_escalation)+(X16*Dg_degradation)),0)) -> 148882184.1 | Z16: =IF(Technology="Biomass",(Y16+(Y16*'RE & DG LCOE - Inputs & Results'!$E$48)),IF(Technology="Diesel",(Y16+(Y16*Dg_fuelcost_escalation)+(Y16*Dg_degradation)),0)) -> 163770402.6 | AA16: =IF(Technology="Biomass",(Z16+(Z16*'RE & DG LCOE - Inputs & Results'!$E$48)),IF(Technology="Diesel",(Z16+(Z16*Dg_fuelcost_escalation)+(Z16*Dg_degradation)),0)) -> 180147442.8 | AB16: =IF(Technology="Biomass",(AA16+(AA16*'RE & DG LCOE - Inputs & Results'!$E$48)),IF(Technology="Diesel",(AA16+(AA16*Dg_fuelcost_escalation)+(AA16*Dg_degradation)),0)) -> 198162187.1 | AC16: =IF(Technology="Biomass",(AB16+(AB16*'RE & DG LCOE - Inputs & Results'!$E$48)),IF(Technology="Diesel",(AB16+(AB16*Dg_fuelcost_escalation)+(AB16*Dg_degradation)),0)) -> 217978405.8 | AD16: =IF(Technology="Biomass",(AC16+(AC16*'RE & DG LCOE - Inputs & Results'!$E$48)),IF(Technology="Diesel",(AC16+(AC16*Dg_fuelcost_escalation)+(AC16*Dg_degradation)),0)) -> 239776246.4 | AE16: =IF(Technology="Biomass",(AD16+(AD16*'RE & DG LCOE - Inputs & Results'!$E$48)),IF(Technology="Diesel",(AD16+(AD16*Dg_fuelcost_escalation)+(AD16*Dg_degradation)),0)) -> 263753871 | AF16: =IF(Technology="Biomass",(AE16+(AE16*'RE & DG LCOE - Inputs & Results'!$E$48)),IF(Technology="Diesel",(AE16+(AE16*Dg_fuelcost_escalation)+(AE16*Dg_degradation)),0)) -> 290129258.1 | AG16: =IF(Technology="Biomass",(AF16+(AF16*'RE & DG LCOE - Inputs & Results'!$E$48)),IF(Technology="Diesel",(AF16+(AF16*Dg_fuelcost_escalation)+(AF16*Dg_degradation)),0)) -> 319142183.9 | AH16: =IF(Technology="Biomass",(AG16+(AG16*'RE & DG LCOE - Inputs & Results'!$E$48)),IF(Technology="Diesel",(AG16+(AG16*Dg_fuelcost_escalation)+(AG16*Dg_degradation)),0)) -> 351056402.3 | AI16: =IF(Technology="Biomass",(AH16+(AH16*'RE & DG LCOE - Inputs & Results'!$E$48)),IF(Technology="Diesel",(AH16+(AH16*Dg_fuelcost_escalation)+(AH16*Dg_degradation)),0)) -> 386162042.6 | AJ16: =IF(Technology="Biomass",(AI16+(AI16*'RE & DG LCOE - Inputs & Results'!$E$48)),IF(Technology="Diesel",(AI16+(AI16*Dg_fuelcost_escalation)+(AI16*Dg_degradation)),0)) -> 424778246.8 | AK16: =IF(Technology="Biomass",(AJ16+(AJ16*'RE & DG LCOE - Inputs & Results'!$E$48)),IF(Technology="Diesel",(AJ16+(AJ16*Dg_fuelcost_escalation)+(AJ16*Dg_degradation)),0)) -> 467256071.5 | AL16: =IF(Technology="Biomass",(AK16+(AK16*'RE & DG LCOE - Inputs & Results'!$E$48)),IF(Technology="Diesel",(AK16+(AK16*Dg_fuelcost_escalation)+(AK16*Dg_degradation)),0)) -> 513981678.7 | AM16: =IF(Technology="Biomass",(AL16+(AL16*'RE & DG LCOE - Inputs & Results'!$E$48)),IF(Technology="Diesel",(AL16+(AL16*Dg_fuelcost_escalation)+(AL16*Dg_degradation)),0)) -> 565379846.5 | AN16: =IF(Technology="Biomass",(AM16+(AM16*'RE & DG LCOE - Inputs & Results'!$E$48)),IF(Technology="Diesel",(AM16+(AM16*Dg_fuelcost_escalation)+(AM16*Dg_degradation)),0)) -> 621917831.2 | AO16: =IF(Technology="Biomass",(AN16+(AN16*'RE & DG LCOE - Inputs & Results'!$E$48)),IF(Technology="Diesel",(AN16+(AN16*Dg_fuelcost_escalation)+(AN16*Dg_degradation)),0)) -> 684109614.3 | AP16: =IF(Technology="Biomass",(AO16+(AO16*'RE & DG LCOE - Inputs & Results'!$E$48)),IF(Technology="Diesel",(AO16+(AO16*Dg_fuelcost_escalation)+(AO16*Dg_degradation)),0)) -> 752520575.7 | AQ16: =IF(Technology="Biomass",(AP16+(AP16*'RE & DG LCOE - Inputs & Results'!$E$48)),IF(Technology="Diesel",(AP16+(AP16*Dg_fuelcost_escalation)+(AP16*Dg_degradation)),0)) -> 827772633.3 | AR16: =IF(Technology="Biomass",(AQ16+(AQ16*'RE & DG LCOE - Inputs & Results'!$E$48)),IF(Technology="Diesel",(AQ16+(AQ16*Dg_fuelcost_escalation)+(AQ16*Dg_degradation)),0)) -> 910549896.6 | AS16: =IF(Technology="Biomass",(AR16+(AR16*'RE & DG LCOE - Inputs & Results'!$E$48)),IF(Technology="Diesel",(AR16+(AR16*Dg_fuelcost_escalation)+(AR16*Dg_degradation)),0)) -> 1001604886 | AT16: =IF(Technology="Biomass",(AS16+(AS16*'RE & DG LCOE - Inputs & Results'!$E$48)),IF(Technology="Diesel",(AS16+(AS16*Dg_fuelcost_escalation)+(AS16*Dg_degradation)),0)) -> 1101765375 | AU16: =IF(Technology="Biomass",(AT16+(AT16*'RE & DG LCOE - Inputs & Results'!$E$48)),IF(Technology="Diesel",(AT16+(AT16*Dg_fuelcost_escalation)+(AT16*Dg_degradation)),0)) -> 1211941912 | AV16: =IF(Technology="Biomass",(AU16+(AU16*'RE & DG LCOE - Inputs & Results'!$E$48)),IF(Technology="Diesel",(AU16+(AU16*Dg_fuelcost_escalation)+(AU16*Dg_degradation)),0)) -> 1333136104 | AW16: =IF(Technology="Biomass",(AV16+(AV16*'RE & DG LCOE - Inputs & Results'!$E$48)),IF(Technology="Diesel",(AV16+(AV16*Dg_fuelcost_escalation)+(AV16*Dg_degradation)),0)) -> 1466449714 | AX16: =IF(Technology="Biomass",(AW16+(AW16*'RE & DG LCOE - Inputs & Results'!$E$48)),IF(Technology="Diesel",(AW16+(AW16*Dg_fuelcost_escalation)+(AW16*Dg_degradation)),0)) -> 1613094685 | AY16: =IF(Technology="Biomass",(AX16+(AX16*'RE & DG LCOE - Inputs & Results'!$E$48)),IF(Technology="Diesel",(AX16+(AX16*Dg_fuelcost_escalation)+(AX16*Dg_degradation)),0)) -> 1774404154 | AZ16: =IF(Technology="Biomass",(AY16+(AY16*'RE & DG LCOE - Inputs & Results'!$E$48)),IF(Technology="Diesel",(AY16+(AY16*Dg_fuelcost_escalation)+(AY16*Dg_degradation)),0)) -> 1951844569 | BA16: =IF(Technology="Biomass",(AZ16+(AZ16*'RE & DG LCOE - Inputs & Results'!$E$48)),IF(Technology="Diesel",(AZ16+(AZ16*Dg_fuelcost_escalation)+(AZ16*Dg_degradation)),0)) -> 2147029026 | BB16: =IF(Technology="Biomass",(BA16+(BA16*'RE & DG LCOE - Inputs & Results'!$E$48)),IF(Technology="Diesel",(BA16+(BA16*Dg_fuelcost_escalation)+(BA16*Dg_degradation)),0)) -> 2361731929
B17: Total Cost of Generation | C17: INR | E17: =SUM(E9, E10, E12:E16) -> 22710505.54 | F17: =SUM(F9, F10, F12:F16) -> 24940570.22 | G17: =SUM(G9, G10, G12:G16) -> 27393906.12 | H17: 30092780.37 | I17: 33061682.61 | J17: 36327547.01 | K17: 39919996.39 | L17: 43871610.74 | M17: 48229503.76 | N17: 53021804.24 | O17: 58291856.88 | P17: 64087334.18 | Q17: 70460668.77 | R17: 77469528.87 | S17: 85177341.4 | AN17: =SUM(AN9, AN10, AN12:AN16) -> 
B18: Cost Of Generation per kWh | C18: INR | E18: =E17/E8 -> 27.00545274 | F18: 29.65726101 | G18: 32.57456493 | H18: 35.78384271 | I18: 39.31421543 | J18: 43.19771096 | K18: 47.46955431 | L18: 52.16848689 | M18: 57.35053244 | N18: 63.04913936 | O18: 69.3158496 | P18: 76.20735134 | Q18: 83.78599311 | R18: 92.12034921 | S18: 101.2858417 | AN18: =AN17/AN8 -> 
B19: Discount factor | E19: 1 | F19: =E19/(1+Discount_rate) -> 0.9202171713 | G19: 0.8467996423 | H19: 0.7792395714 | I19: 0.7170696341 | J19: 0.6598597903 | K19: 0.6072143097 | L19: 0.5587690344 | M19: 0.5141888602 | N19: 0.4731654184 | O19: 0.4354149429 | P19: 0.4006763071 | Q19: 0.3687092179 | R19: 0.3392925535 | S19: 0.3122228338 | T19: 0.2873128129 | U19: 0.264390184 | V19: 0.2432963872 | W19: 0.2238855132 | X19: 0.2060232936 | Y19: 0.1895861725 | Z19: 0.1744604514 | AA19: 0.160541503 | AB19: 0.1477330478 | AC19: 0.1359464873 | AD19: 0.125100292 | AE19: 0.1151194369 | AF19: 0.1059348825 | AG19: 0.09748309794 | AH19: 0.08970562063 | AI19: 0.08254865247 | AJ19: 0.07596268746 | AK19: 0.06990216938 | AL19: 0.06432517657 | AM19: 0.05919313202 | AN19: =AM19/(1+Discount_rate) -> 0.05447053651 | AO19: =AN19/(1+Discount_rate) -> 0.05012472302 | AP19: =AO19/(1+Discount_rate) -> 0.04612563083 | AQ19: =AP19/(1+Discount_rate) -> 0.04244559752 | AR19: =AQ19/(1+Discount_rate) -> 0.03905916769 | AS19: =AR19/(1+Discount_rate) -> 0.0359429168 | AT19: =AS19/(1+Discount_rate) -> 0.03307528922 | AU19: =AT19/(1+Discount_rate) -> 0.03043644909 | AV19: =AU19/(1+Discount_rate) -> 0.02800814308 | AW19: =AV19/(1+Discount_rate) -> 0.0257735742 | AX19: =AW19/(1+Discount_rate) -> 0.02371728554 | AY19: =AX19/(1+Discount_rate) -> 0.02182505341 | AZ19: =AY19/(1+Discount_rate) -> 0.02008378891 | BA19: =AZ19/(1+Discount_rate) -> 0.01848144742 | BB19: =BA19/(1+Discount_rate) -> 0.01700694527
B20: Present value | C20: INR | E20: =E18*E19 -> 27.00545274 | F20: =F18*F19 -> 27.29112083 | G20: 27.58412993 | H20: 27.88418626 | I20: 28.19103007 | J20: 28.5044325 | K20: 28.82419265 | L20: 29.15013505 | M20: 29.48900491 | N20: 29.83267241 | O20: 30.18115669 | P20: 30.53448011 | Q20: 30.89266799 | R20: 31.25574851 | S20: 31.62375251 | AD20: =AD18*AD19 ->  | AN20: =AN18*AN19 -> 
B21: Levelised Cost of generation | C21: INR | D21: =SUM(OFFSET(E20,0,0,1,Plant_life))/SUM(OFFSET(E19,0,0,1,Plant_life)) -> 49.05989564
B22: Average Cost of Generation | C22: INR | D22: =AVERAGE(OFFSET(E18,0,0,1,Plant_life)) -> 56.68574305
B24: Debt
B25: Debt opening balance | C25: INR | E25: =Debt -> 603560.9216 | F25: =E27 -> 510705.3952 | G25: =F27 -> 417849.8688 | H25: =G27 -> 324994.3424 | I25: 232138.816 | J25: 139283.2896 | K25: 46427.7632 | L25: -46427.7632 | M25: -46427.7632 | N25: -46427.7632 | O25: -46427.7632 | P25: -46427.7632 | Q25: -46427.7632 | R25: -46427.7632 | S25: -46427.7632 | T25: -46427.7632 | U25: -46427.7632 | V25: -46427.7632 | W25: -46427.7632 | X25: -46427.7632 | Y25: -46427.7632 | Z25: -46427.7632 | AA25: -46427.7632 | AB25: -46427.7632 | AC25: -46427.7632 | AD25: =AC27 -> -46427.7632 | AE25: -46427.7632 | AF25: -46427.7632 | AG25: -46427.7632 | AH25: -46427.7632 | AI25: -46427.7632 | AJ25: -46427.7632 | AK25: -46427.7632 | AL25: -46427.7632 | AM25: -46427.7632 | AN25: =AM27 -> -46427.7632 | AO25: =AN27 -> -46427.7632 | AP25: =AO27 -> -46427.7632 | AQ25: =AP27 -> -46427.7632 | AR25: =AQ27 -> -46427.7632 | AS25: =AR27 -> -46427.7632 | AT25: =AS27 -> -46427.7632 | AU25: =AT27 -> -46427.7632 | AV25: =AU27 -> -46427.7632 | AW25: =AV27 -> -46427.7632 | AX25: =AW27 -> -46427.7632 | AY25: =AX27 -> -46427.7632 | AZ25: =AY27 -> -46427.7632 | BA25: =AZ27 -> -46427.7632 | BB25: =BA27 -> -46427.7632
B26: Debt repayment | C26: INR | E26: =IF(E4>Moratorium, IF(E25>0.001, Debt/(Loan_tenure-Moratorium), 0), 0) -> 92855.5264 | F26: 92855.5264 | G26: 92855.5264 | H26: 92855.5264 | I26: 92855.5264 | J26: 92855.5264 | K26: 92855.5264 | L26: 0 | M26: 0 | N26: 0 | O26: 0 | P26: 0 | Q26: 0 | R26: 0 | S26: 0 | T26: 0 | U26: 0 | V26: 0 | W26: 0 | X26: 0 | Y26: 0 | Z26: 0 | AA26: 0 | AB26: 0 | AC26: 0 | AD26: 0 | AE26: 0 | AF26: 0 | AG26: 0 | AH26: 0 | AI26: 0 | AJ26: 0 | AK26: 0 | AL26: 0 | AM26: 0 | AN26: =IF(AN4>Moratorium, IF(AN25>0.001, Debt/(Loan_tenure-Moratorium), 0), 0) -> 0 | AO26: 0 | AP26: 0 | AQ26: 0 | AR26: 0 | AS26: 0 | AT26: 0 | AU26: 0 | AV26: 0 | AW26: 0 | AX26: 0 | AY26: 0 | AZ26: 0 | BA26: 0 | BB26: 0
B27: Debt closing balance | C27: INR | E27: =E25-E26 -> 510705.3952 | F27: =F25-F26 -> 417849.8688 | G27: =G25-G26 -> 324994.3424 | H27: =H25-H26 -> 232138.816 | I27: 139283.2896 | J27: 46427.7632 | K27: -46427.7632 | L27: -46427.7632 | M27: -46427.7632 | N27: -46427.7632 | O27: -46427.7632 | P27: -46427.7632 | Q27: -46427.7632 | R27: -46427.7632 | S27: -46427.7632 | T27: -46427.7632 | U27: -46427.7632 | V27: -46427.7632 | W27: -46427.7632 | X27: -46427.7632 | Y27: -46427.7632 | Z27: -46427.7632 | AA27: -46427.7632 | AB27: -46427.7632 | AC27: -46427.7632 | AD27: =AD25-AD26 -> -46427.7632 | AE27: -46427.7632 | AF27: -46427.7632 | AG27: -46427.7632 | AH27: -46427.7632 | AI27: -46427.7632 | AJ27: -46427.7632 | AK27: -46427.7632 | AL27: -46427.7632 | AM27: -46427.7632 | AN27: =AN25-AN26 -> -46427.7632 | AO27: -46427.7632 | AP27: -46427.7632 | AQ27: -46427.7632 | AR27: -46427.7632 | AS27: -46427.7632 | AT27: -46427.7632 | AU27: -46427.7632 | AV27: -46427.7632 | AW27: -46427.7632 | AX27: -46427.7632 | AY27: -46427.7632 | AZ27: -46427.7632 | BA27: -46427.7632 | BB27: -46427.7632
B28: Interest | C28: INR | E28: =Interest*E25 -> 72125.53013 | F28: 61029.29473 | G28: 49933.05932 | H28: 38836.82392 | I28: 27740.58851 | J28: 16644.35311 | K28: 5548.117702 | L28: -5548.117702 | M28: -5548.117702 | N28: -5548.117702 | O28: -5548.117702 | P28: -5548.117702 | Q28: -5548.117702 | R28: -5548.117702 | S28: -5548.117702 | T28: -5548.117702 | U28: -5548.117702 | V28: -5548.117702 | W28: -5548.117702 | X28: -5548.117702 | Y28: -5548.117702 | Z28: -5548.117702 | AA28: -5548.117702 | AB28: -5548.117702 | AC28: -5548.117702 | AD28: -5548.117702 | AE28: -5548.117702 | AF28: -5548.117702 | AG28: -5548.117702 | AH28: -5548.117702 | AI28: -5548.117702 | AJ28: -5548.117702 | AK28: -5548.117702 | AL28: -5548.117702 | AM28: -5548.117702 | AN28: =Interest*AN25 -> -5548.117702 | AO28: -5548.117702 | AP28: -5548.117702 | AQ28: -5548.117702 | AR28: -5548.117702 | AS28: -5548.117702 | AT28: -5548.117702 | AU28: -5548.117702 | AV28: -5548.117702 | AW28: -5548.117702 | AX28: -5548.117702 | AY28: -5548.117702 | AZ28: -5548.117702 | BA28: -5548.117702 | BB28: -5548.117702
B29: Total debt service | C29: INR | E29: =E26+E28 -> 164981.0565 | F29: =F26+F28 -> 153884.8211 | G29: 142788.5857 | H29: 131692.3503 | I29: 120596.1149 | J29: 109499.8795 | K29: 98403.6441 | L29: -5548.117702 | M29: -5548.117702 | N29: -5548.117702 | O29: -5548.117702 | P29: -5548.117702 | Q29: -5548.117702 | R29: -5548.117702 | S29: -5548.117702 | T29: -5548.117702 | U29: -5548.117702 | V29: -5548.117702 | W29: -5548.117702 | X29: -5548.117702 | Y29: -5548.117702 | Z29: -5548.117702 | AA29: -5548.117702 | AB29: -5548.117702 | AC29: -5548.117702 | AD29: =AD26+AD28 -> -5548.117702 | AE29: -5548.117702 | AF29: -5548.117702 | AG29: -5548.117702 | AH29: -5548.117702 | AI29: -5548.117702 | AJ29: -5548.117702 | AK29: -5548.117702 | AL29: -5548.117702 | AM29: -5548.117702 | AN29: =AN26+AN28 -> -5548.117702 | AO29: -5548.117702 | AP29: -5548.117702 | AQ29: -5548.117702 | AR29: -5548.117702 | AS29: -5548.117702 | AT29: -5548.117702 | AU29: -5548.117702 | AV29: -5548.117702 | AW29: -5548.117702 | AX29: -5548.117702 | AY29: -5548.117702 | AZ29: -5548.117702 | BA29: -5548.117702 | BB29: -5548.117702
B31: Working Capital
B32: Operation and Maintenance wcap | C32: INR | E32: =E9/(12/Workingcapital_OandM) -> 32623.68 | F32: 34891.02576 | G32: 37315.95205 | H32: 39909.41072 | I32: 42683.11476 | J32: 45649.59124 | K32: 48822.23783 | L32: 52215.38336 | M32: 55844.3525 | N32: 59725.535 | O32: 63876.45968 | P32: 68315.87363 | Q32: 73063.82685 | R32: 78141.76282 | S32: 83572.61533 | T32: 89380.9121 | U32: 95592.88549 | V32: 102236.591 | W32: 109342.0341 | X32: 116941.3055 | Y32: 125068.7262 | Z32: 133761.0027 | AA32: 143057.3924 | AB32: 152999.8811 | AC32: 163633.3729 | AD32: 175005.8923 | AE32: 187168.8018 | AF32: 200177.0335 | AG32: 214089.3374 | AH32: 228968.5463 | AI32: 244881.8603 | AJ32: 261901.1496 | AK32: 280103.2795 | AL32: 299570.4574 | AM32: 320390.6042 | AN32: =AN9/(12/Workingcapital_OandM) -> 342657.7512 | AO32: 366472.4649 | AP32: 391942.3012 | AQ32: 419182.2911 | AR32: 448315.4603 | AS32: 479473.3848 | AT32: 512796.7851 | AU32: 548436.1616 | AV32: 586552.4749 | AW32: 627317.8719 | AX32: 670916.464 | AY32: 717545.1582 | AZ32: 767414.5467 | BA32: 820749.8577 | BB32: 877791.9728
B33: Maintenance spares wcap | C33: INR | E33: =E9*Workingcapital_spares -> 58722.624 | F33: 62803.84637 | G33: 67168.71369 | H33: 71836.93929 | I33: 76829.60657 | J33: 82169.26423 | K33: 87880.02809 | L33: 93987.69005 | M33: 100519.8345 | N33: 107505.963 | O33: 114977.6274 | P33: 122968.5725 | Q33: 131514.8883 | R33: 140655.1731 | S33: 150430.7076 | T33: 160885.6418 | U33: 172067.1939 | V33: 184025.8639 | W33: 196815.6614 | X33: 210494.3499 | Y33: 225123.7072 | Z33: 240769.8048 | AA33: 257503.3063 | AB33: 275399.786 | AC33: 294540.0712 | AD33: 315010.6061 | AE33: 336903.8432 | AF33: 360318.6603 | AG33: 385360.8072 | AH33: 412143.3833 | AI33: 440787.3485 | AJ33: 471422.0692 | AK33: 504185.903 | AL33: 539226.8233 | AM33: 576703.0875 | AN33: =AN9*Workingcapital_spares -> 616783.9521 | AO33: 659650.4367 | AP33: 705496.1421 | AQ33: 754528.124 | AR33: 806967.8286 | AS33: 863052.0927 | AT33: 923034.2131 | AU33: 987185.0909 | AV33: 1055794.455 | AW33: 1129172.169 | AX33: 1207649.635 | AY33: 1291581.285 | AZ33: 1381346.184 | BA33: 1477349.744 | BB33: 1580025.551
B34: Interest on O&M wcap | C34: INR | E34: =(E32+E33)*Interest_working_capital -> 9134.6304 | F34: 9769.487213 | G34: 10448.46657 | H34: 11174.635 | I34: 11951.27213 | J34: 12781.88555 | K34: 13670.22659 | L34: 14620.30734 | M34: 15636.4187 | N34: 16723.1498 | O34: 17885.40871 | P34: 19128.44462 | Q34: 20457.87152 | R34: 21879.69359 | S34: 23400.33229 | T34: 25026.65539 | U34: 26766.00794 | V34: 28626.24549 | W34: 30615.76955 | X34: 32743.56553 | Y34: 35019.24334 | Z34: 37453.08075 | AA34: 40056.06986 | AB34: 42839.96672 | AC34: 45817.3444 | AD34: 49001.64984 | AE34: 52407.2645 | AF34: 56049.56939 | AG34: 59945.01446 | AH34: 64111.19296 | AI34: 68566.92088 | AJ34: 73332.32188 | AK34: 78428.91825 | AL34: 83879.72806 | AM34: 89709.36917 | AN34: =(AN32+AN33)*Interest_working_capital -> 95944.17032 | AO34: 102612.2902 | AP34: 109743.8443 | AQ34: 117371.0415 | AR34: 125528.3289 | AS34: 134252.5477 | AT34: 143583.0998 | AU34: 153562.1253 | AV34: 164234.693 | AW34: 175649.0041 | AX34: 187856.6099 | AY34: 200912.6443 | AZ34: 214876.0731 | BA34: 229809.9602 | BB34: 245781.7524
B35: Fuel cost wcap | C35: INR | E35: =IF(Technology="Biomass",E16/(12/Bio_workingcapital_fuel),0) -> 0 | F35: 0 | G35: 0 | H35: 0 | I35: 0 | J35: 0 | K35: 0 | L35: 0 | M35: 0 | N35: 0 | O35: 0 | P35: 0 | Q35: 0 | R35: 0 | S35: 0 | T35: 0 | U35: 0 | V35: 0 | W35: 0 | X35: 0 | Y35: 0 | Z35: 0 | AA35: 0 | AB35: 0 | AC35: 0 | AD35: 0 | AE35: 0 | AF35: 0 | AG35: 0 | AH35: 0 | AI35: 0 | AJ35: 0 | AK35: =IF(Technology="Biomass",AK16/(12/Bio_workingcapital_fuel),0) -> 0 | AL35: 0 | AM35: 0 | AN35: 0 | AO35: 0 | AP35: 0 | AQ35: 0 | AR35: 0 | AS35: 0 | AT35: 0 | AU35: 0 | AV35: 0 | AW35: 0 | AX35: 0 | AY35: 0 | AZ35: 0 | BA35: 0 | BB35: 0
B36: Receivables wcap | C36: INR | E36: =IF(Workingcapital_receivables>0, (E9+E10+E12+E13+E15+E34)/(12/Workingcapital_receivables),0) -> 95101.23547 | F36: 97892.36389 | G36: 101006.0071 | H36: 104464.58 | I36: 108292.055 | J36: 112514.071 | K36: 117158.0484 | L36: 122253.3137 | M36: 129680.6039 | N36: 137624.0907 | O36: 146119.6499 | P36: 155205.6505 | Q36: 164923.128 | R36: 175315.9703 | S36: 186431.1151 | AN36: =IF(Workingcapital_receivables>0, (AN9+AN10+AN12+AN13+AN15+AN34)/(12/Workingcapital_receivables),0) -> 
B37: Interest on reveivables wcap | C37: INR | E37: =E36*Interest_working_capital -> 9510.123547 | F37: 9789.236389 | G37: 10100.60071 | H37: 10446.458 | I37: 10829.2055 | J37: 11251.4071 | K37: 11715.80484 | L37: 12225.33137 | M37: 12968.06039 | N37: 13762.40907 | O37: 14611.96499 | P37: 15520.56505 | Q37: 16492.3128 | R37: 17531.59703 | S37: 18643.11151 | AN37: =AN36*Interest_working_capital -> 
B39: Financials
B40: Cash Flow | C40: INR
B41: Equity IRR | C41: %
B42: Cumulative Cash Flow | C42: INR | E42: =E40 -> 0 | F42: =E42+F40 -> 0 | G42: =F42+G40 -> 0 | H42: 0 | I42: 0 | J42: 0 | K42: 0 | L42: 0 | M42: 0 | N42: 0 | O42: 0 | P42: 0 | Q42: 0 | R42: 0 | S42: 0 | T42: 0 | U42: 0 | V42: 0 | W42: 0 | X42: 0 | Y42: 0 | Z42: 0 | AA42: 0 | AB42: 0 | AC42: 0 | AD42: =AC42+AD40 -> 0 | AE42: 0 | AF42: 0 | AG42: 0 | AH42: 0 | AI42: 0 | AJ42: 0 | AK42: 0 | AL42: 0 | AM42: 0 | AN42: =AM42+AN40 -> 0 | AO42: =AN42+AO40 -> 0 | AP42: =AO42+AP40 -> 0 | AQ42: =AP42+AQ40 -> 0 | AR42: =AQ42+AR40 -> 0 | AS42: =AR42+AS40 -> 0 | AT42: =AS42+AT40 -> 0 | AU42: =AT42+AU40 -> 0 | AV42: =AU42+AV40 -> 0 | AW42: =AV42+AW40 -> 0 | AX42: =AW42+AX40 -> 0 | AY42: =AX42+AY40 -> 0 | AZ42: =AY42+AZ40 -> 0 | BA42: =AZ42+BA40 -> 0 | BB42: =BA42+BB40 -> 0
B43: Asset value | E43: =Gross_capex -> 1074979.84 | F43: =E43-E11 -> 1003278.685 | G43: 931577.5293 | H43: 859876.374 | I43: 788175.2187 | J43: 716474.0634 | K43: 644772.908 | L43: 573071.7527 | M43: 501370.5974 | N43: 429669.442 | O43: 357968.2867 | P43: 286267.1314 | Q43: 214565.9761 | R43: 142864.8207 | S43: 71163.66541 | T43: -537.48992 | U43: =T43-T11 ->  | AN43: =AM43-AM11 ->  | AO43: =AN43-AN11 ->  | AP43: =AO43-AO11 ->  | AQ43: =AP43-AP11 ->  | AR43: =AQ43-AQ11 ->  | AS43: =AR43-AR11 ->  | AT43: =AS43-AS11 ->  | AU43: =AT43-AT11 ->  | AV43: =AU43-AU11 ->  | AW43: =AV43-AV11 ->  | AX43: =AW43-AW11 ->  | AY43: =AX43-AX11 ->  | AZ43: =AY43-AY11 ->  | BA43: =AZ43-AZ11 ->  | BB43: =BA43-BA11 -> 

Sheet RE & DG references
B1: DEFAULT VALUES FOR LCOE
B3: Assumption | C3: Unit | D3: Solar PV1,2,3 | E3: Wind4 | F3: Biomass | G3: Bagasse cogeneration | H3: Biomass Gasifier-based power projects | I3: Biogas-based power projects | J3: Small Hydro | K3: Diesel Generator
B4: Capital cost | C4: INR/kW | D4: 38000 | E4: 52500 | F4: 60550 | G4: 49200 | H4: 59300 | I4: 118600 | J4: 84000 | K4: 8398.28
B5: Capital subsidy per kW | C5: INR/kW | G5: 2500 | H5: 15000 | I5: 30000 | K5: 1662.109
B6: Plant size | C6: kW | D6: 100 | E6: 1000 | F6: 1000 | G6: 1000 | H6: 1000 | I6: 1000 | J6: 1000 | K6: 128
B7: Economic Life | C7: years | D7: 25 | E7: 25 | F7: 25 | G7: 25 | H7: 25 | I7: 25 | J7: 40 | K7: 15
B8: Capacity utilisation factor (CUF) | C8: % | D8: 0.19 | E8: 0.29 | F8: 0.8 | G8: 0.53 | H8: 0.85 | I8: 0.9 | J8: 0.3 | K8: 0.75
B9: Auxiliary consumption | C9: % | D9: 0 | E9: 0 | F9: 11 | G9: 8.5 | H9: 10 | I9: 12 | J9: 1
B10: Annual solar PV degradation5 | C10: % | D10: 1
B11: Station heat rate | C11: kCal/kWh | F11: 4162 | G11: 3600
B12: Calorific value | C12: kCal/kg | F12: 3100 | G12: 2250
B13: Specific fuel consumption | C13: kg/kWh | F13: =F11/F12 -> 1.342580645 | G13: =G11/G12 -> 1.6 | H13: 1.25 | I13: 3 | K13: 28.07
B14: Fuel cost | C14: INR/MT | F14: 3352 | G14: 2225 | H14: 3352 | I14: 1422 | K14: 90
B15: Fuel cost escalation | C15: % | F15: 0.05 | G15: 0.05 | H15: 0.05 | I15: 0.05 | K15: 0.08
B16: Grid availability factor | C16: % | D16: 95 | E16: 95
B17: Discount rate | C17: % | D17: 8.61 | E17: 8.61 | F17: 8.61 | G17: 8.61 | H17: 8.61 | I17: 8.61 | J17: 8.61 | K17: 8.67
B18: Equity | C18: % | D18: 30 | E18: 30 | F18: 30 | G18: 30 | J18: 30 | K18: 30
B19: Loan tenure | C19: years | D19: 15 | E19: 15 | F19: 15 | G19: 15 | H19: 15 | I19: 15 | J19: 15 | K19: 7
B20: Moratorium | C20: years | D20: 1 | E20: 1 | F20: 1 | G20: 1 | H20: 1 | I20: 1 | J20: 1 | K20: 0.5
B21: Interest on loan | C21: % | D21: 9.67 | E21: 9.67 | F21: 9.67 | G21: 9.67 | H21: 9.67 | I21: 9.67 | J21: 9.67 | K21: 11.95
B22: Interest on Working Capital | C22: % | D22: 11.17 | E22: 11.17 | F22: 11.17 | G22: 11.17 | H22: 11.17 | I22: 11.17 | J22: 11.17 | K22: 10
B23: Return on Equity7 | C23: % | D23: 15.6 | E23: 15.6 | F23: 15.6 | G23: 15.6 | H23: 15.6 | I23: 15.6 | J23: 15.6 | K23: 15.6
B24: Operation and Maintenance Expenses in year 1 | C24: INR/kW-yr | D24: 600 | E24: 500 | F24: 4642 | G24: 2452 | H24: 6131 | I24: 6131 | J24: 2902 | K24: 3058.47
B25: Annual increase in Operation and Maintenance Expenses | C25: % | D25: 3.84 | E25: 3.84 | F25: 3.84 | G25: 3.84 | H25: 3.84 | I25: 3.84 | J25: 3.84 | K25: 6.95
B26: Insurance (% of depreciated asset value) | C26: % | D26: 0.35 | E26: 0.25 | J26: 0.35
B27: Working capital – O&M | C27: months | D27: 1 | E27: 1 | F27: 1 | G27: 1 | H27: 1 | I27: 1 | J27: 1 | K27: 1
B28: Working capital – Receivables | C28: months | D28: 1.5 | E28: 1.5 | F28: 1.5 | G28: 1.5 | H28: 1.5 | I28: 1.5 | J28: 1.5 | K28: 2
B29: Working capital – Fuel | C29: months | F29: 4 | G29: 4 | H29: 4 | I29: 4 | K29: 4
B30: Working capital – Maintenance spares | C30: % | D30: 0.15 | E30: 0.15 | F30: 0.15 | G30: 0.15 | H30: 0.15 | I30: 0.15 | J30: 0.15 | K30: 0.15
B31: n1 years | C31: % | D31: 15 | E31: 15 | F31: 15 | G31: 15 | H31: 15 | I31: 15 | J31: 15 | K31: 15
B32: Depreciation Rate for first n1 years | C32: % | D32: 4.67 | E32: 4.67 | F32: 4.67 | G32: 4.67 | H32: 4.67 | I32: 4.67 | J32: 4.67 | K32: 6.67
B33: Salvage value | C33: % | D33: 10 | E33: 10 | F33: 10 | G33: 10 | H33: 10 | I33: 10 | J33: 10
B36: REFERENCES
B38: 1. Ministry of New & Renewable Energy (MNRE). (2020). Benchmark Costs for Grid-Connected Rooftop Solar Photovoltaic for the Financial Years 2020-21. https://mnre.gov.in/img/documents/uploads/file_f-1595328067505.pdf
B39: 2. Tamil Nadu Electricity Regulatory Commission (TNERC). (2018). Order on generic tariff for solar power and related issues. http://www.tnerc.gov.in/orders/Tariff%20Order%202009/2019/Solar-5-29-03-2019.pdf
B40: 3. Karnataka Electricity Regulatory Commission (KERC). (2019). Determination of tariff in respect of Solar Power Projects (including Solar Rooftop Photo voltaic Projects) for FY20. https://karunadu.karnataka.gov.in/kerc/Documents/Determination%20of%20tariff%20in%20respect%20of%20SOlar%20Power%20Projects%20(including%20Solar%20Rooftop%20Photovoltaic%20Projects%20for%20FY20.pdf
B41: 4. Tamil Nadu Electricity Regulatory Commission. (2018). Order on generic tariff for wind power and related issues. http://www.tnerc.gov.in/orders/Tariff%20Order%202009/2018/Wind-6of2018.pdf
B42: 5. Lawrence Berkeley National Lab (LBNL). (2020). Distributed Solar 2020 Data Update. Available at: https://emp.lbl.gov/tracking-the-sun/
B43: 6. Central Electricity Regulatory Commission (CERC). (2021). Determination of levellised generic tariff for FY 2020-21 under Regulation 8 of the Central Electricity Regulatory Commission (Terms and Conditions for Tariff determination from Renewable Energy Sources) Regulations, 2020. http://www.cercind.gov.in/2020/orders/13-SM-2020.pdf
B44: 7. Center for Energy Regulation. (2020). CERC (Terms and Conditions for Tariff determination from Renewable Energy Sources) Regulations, 2020 [Draft]. Regulatory Insights, 3(1), 2-3. https://cer.iitk.ac.in/newsletters/regulatory_insights/Volume03_Issue01.pdf

Sheet LCOS - Inputs & Results
B1: Assumed configuration for the solar plus energy storage system: DC-coupled
D3: SELECT CONFIGURATION:
C8: INPUTS | H8: Solar+Storage | J8: SYSTEM SIZE & OUTPUTS
C9: Parameter | D9: Unit | E9: Value | J9: Parameter | K9: Unit | L9: Value
C11: General inputs
C12: Base year for LCOS calculation | D12: year | E12: 2020 | J12: Solar PV size | K12: kW | L12: =SolarPV_size -> 27.24
C13: Battery technology | E13: Li-ion | J13: Inverter capacity | K13: kW | L13: =Storage_inverter_capacity -> 22.7
C14: Discount rate | D14: % | E14: 0.0861 | J14: Battery capacity | K14: kWh | L14: =Storage_power_capacity*Storage_duration -> 48
C15: Equity | D15: % | E15: 0.3 | J15: Storage duration (E to P ratio) at 100% DoD | K15: hr | L15: =Storage_duration -> 4
C16: Return on Equity | D16: % | E16: 0.156 | J16: Battery life | K16: years | L16: =ROUND(Storage_life_cycles/Storage_annual_cycles,0) -> 9
C17: Loan tenure | D17: years | E17: 15 | J17: Solar generated passing through battery (Year 1) | K17: % | L17: =IF(H8="Standalone", "-", IF('LCOS calc'!E98/Storage_roundtripefficiency>='LCOS calc'!E97*(1-Storage_solar_directconsumption), (1-Storage_solar_directconsumption), 'LCOS calc'!E100)) -> 0.3026757157
C18: Moratorium | D18: years | E18: 1 | J18: Solar exported (Year 1) | K18: % | L18: =IF(H8="Standalone", "-", IF('LCOS calc'!E98/Storage_roundtripefficiency>='LCOS calc'!E97*(1-Storage_solar_directconsumption), 0, (1-Storage_solar_directconsumption-'LCOS calc'!E100))) -> 0.3473242843
C19: Interest on loan | D19: % | E19: 0.0967 | J19: Net capital cost | K19: INR | L19: =Storage_pack_capexperkWh*(1-Storage_capitalsubsidy_percentage)*Storage_capacity+Storage_invertercapex_perkW*Storage_inverter_capacity+Storage_enclosure_capexperkWh*Storage_capacity+Storage_installation_cost+(SolarPV_capex_perkW*(1-SolarPV_capex_inverterpercentage*(1+Storage_inverter_GST))-SolarPV_capitalsubsidy_perkW)*SolarPV_size -> 2588769.84
C20: Annual increase in Operation and Maintenance expenses | D20: % | E20: 0.0384 | J20: Equity | K20: INR | L20: =Storage_net_capex*Storage_equity_percentage -> 776630.952
C21: Insurance (% of depreciated asset value) | D21: % | E21: 0 | J21: Debt | K21: INR | L21: =Storage_net_capex-Storage_equity -> 1812138.888
C22: Working Capital - O&M | D22: months | E22: 1 | J22: Annual Depreciation | K22: INR | L22: =Storage_pack_capexperkWh*(1-Storage_capitalsubsidy_percentage)*Storage_capacity*Storage_depreciationrate_storage + Storage_invertercapex_perkW*Storage_inverter_capacity*Storage_depreciationrate_inverter +Storage_enclosure_capexperkWh*Storage_capacity*Storage_depreciationrate_storage +Storage_installation_cost*Storage_depreciationrate_storage +(SolarPV_capex_perkW*(1-SolarPV_capex_inverterpercentage*(1+Storage_inverter_GST))-SolarPV_capitalsubsidy_perkW)*SolarPV_size*Storage_solarPV_depreciationrate -> 187866.6456
C23: Working Capital - Receivables | D23: months | E23: 1.5
C24: Working capital - Maintenance spares | D24: % | E24: 0.15
C25: Interest on Working Capital | D25: % | E25: 0.1117
C26: Salvage value at end of life | D26: % | E26: 0.1
C27: Charge controller efficiency | D27: % | E27: 0.96
C29: Solar PV capital costs and inputs
C30: Solar PV capital cost per kW | D30: INR/kW | E30: 38000
C31: Solar panel cost in total capital cost | D31: % | E31: 0.49 | J31: 0.5
C32: Inverter cost % in total capital cost | D32: % | E32: 0.16
C33: BoS (excl solar inverter) cost % in total capital cost | D33: % | E33: 0.2 | J33: By changing:
C34: Installation cost % in total capital cost | D34: % | E34: 0.068 | J34: SolarPV_size
C35: Soft costs (taxes) % in total capital cost | D35: % | E35: 0.082
C36: Capital subsidy per kW | D36: INR | E36: 0
C37: Solar PV size | D37: kW | E37: 27.24
C38: Plant life | D38: years | E38: 25
C39: Capacity utilisation factor (CUF) | D39: % | E39: 0.19
C40: Operation and Maintenance expenses in Year 1 | D40: INR/kW-yr | E40: 600
C41: n1 years | D41: years | E41: 15
C42: Depreciation rate | D42: % | E42: 0.0465
C43: Annual solar panel degradation | D43: % | E43: 0.01
C44: Solar generation self-consumed directly | D44: % | E44: 0.35
C46: Inverter-specific inputs
C47: Inverter capital cost per kW | D47: INR/kW | E47: 35700
C48: Additional soft costs (GST) | D48: % | E48: 0.05
C49: Inverter capacity | D49: kW | E49: =IF(Storage_case = "Solar+Storage", SolarPV_size/1.2, Storage_power_capacity) -> 22.7
C50: Inverter efficiency | D50: % | E50: 0.96
C51: Inverter replacement year | D51: years | E51: 14
C52: O&M expenses in Year 1 - Power | D52: INR/kW-yr | E52: 750
C53: Depreciation rate | D53: % | E53: =(1-Storage_salvage_value)/(Storage_inverter_replacementyear-1) -> 0.06923076923
C55: Battery storage-specific inputs
C56: Battery pack capital cost per kWh | D56: INR/kWh | E56: 17900
C57: Cost for enclosure and BoS | D57: INR/kWh | E57: =0.05*Storage_pack_capexperkWh -> 895
C58: Capital subsidy per kWh | D58: % | E58: 0
C59: Installation cost | D59: INR | E59: 15000
C60: Additional soft costs (GST on battery system) | D60: % | E60: 0.05
C61: Additional soft costs (GST on installation) | D61: % | E61: 0.18
C62: Battery power capacity | D62: kW | E62: 12
C63: Storage duration (E to P ratio) at 100% DoD | D63: hr | E63: 4
C64: Storage round trip efficiency | D64: % | E64: 0.97
C65: Depth of Discharge | D65: % | E65: 0.8
C66: Storage cycles per year at given DoD | D66: cycles | E66: 365
C67: End of life capacity relative to initial capacity | D67: % | E67: 0.8
C68: Storage cycle life | D68: cycles | E68: 3175
C69: Storage shelf life | D69: years | E69: 13
C70: Cycle degradation | D70: % | E70: 5.6e-05
C71: Time degradation | D71: % | E71: 0.017
C72: O&M expenses in Year 1 - Energy | D72: INR/kWh-yr | E72: 400
C73: Depreciation rate | D73: % | E73: =(1-Storage_salvage_value)/Storage_life -> 0.1
C74: Electricity tariff for charging battery | D74: INR/kWh | E74: 6.6
C75: Cost escalation for input electricty | D75: % | E75: 0.0384

Sheet LCOS calc
A1: This sheet contains the LCOS calculations.
J2: Year ----->
B3: Parameter | C3: Unit | D3: Cumulative | E3: 1 | F3: =E3+1 -> 2 | G3: =F3+1 -> 3 | H3: 4 | I3: 5 | J3: 6 | K3: 7 | L3: 8 | M3: 9 | N3: 10 | O3: 11 | P3: 12 | Q3: 13 | R3: 14 | S3: 15 | T3: 16 | U3: 17 | V3: 18 | W3: 19 | X3: 20 | Y3: 21 | Z3: 22 | AA3: 23 | AB3: 24 | AC3: 25
B5: Storage cost timeline
B6: Year | E6: =Storage_base_year -> 2020 | F6: =E6+1 -> 2021 | G6: =F6+1 -> 2022 | H6: 2023 | I6: 2024 | J6: 2025 | K6: 2026 | L6: 2027 | M6: 2028 | N6: 2029 | O6: 2030 | P6: 2031 | Q6: 2032 | R6: 2033 | S6: 2034 | T6: 2035 | U6: 2036 | V6: 2037 | W6: 2038 | X6: 2039 | Y6: 2040 | Z6: 2041 | AA6: 2042 | AB6: 2043 | AC6: 2044
B7: Storage operation year | E7: =IF(MOD(E3,Storage_life)=0, Storage_life, MOD(E3,Storage_life)) -> 1 | F7: 2 | G7: 3 | H7: 4 | I7: 5 | J7: 6 | K7: 7 | L7: 8 | M7: 9 | N7: 1 | O7: 2 | P7: 3 | Q7: 4 | R7: 5 | S7: 6 | T7: 7 | U7: 8 | V7: 9 | W7: 1 | X7: 2 | Y7: 3 | Z7: 4 | AA7: 5 | AB7: 6 | AC7: 7
B8: Battery pack cost per kWh in year n | C8: INR | E8: =IF(E7=1, (Storage_pack_capexperkWh*VLOOKUP(E6, 'Cost projections'!$C$10:$D$55, 2)/VLOOKUP(Storage_base_year, 'Cost projections'!$C$10:$D$55, 2)), 0) -> 17900 | F8: =IF(F7=1, (Storage_pack_capexperkWh*VLOOKUP(F6, 'Cost projections'!$C$10:$D$55, 2)/VLOOKUP(Storage_base_year, 'Cost projections'!$C$10:$D$55, 2)), 0) -> 0 | G8: =IF(G7=1, (Storage_pack_capexperkWh*VLOOKUP(G6, 'Cost projections'!$C$10:$D$55, 2)/VLOOKUP(Storage_base_year, 'Cost projections'!$C$10:$D$55, 2)), 0) -> 0 | H8: =IF(H7=1, (Storage_pack_capexperkWh*VLOOKUP(H6, 'Cost projections'!$C$10:$D$55, 2)/VLOOKUP(Storage_base_year, 'Cost projections'!$C$10:$D$55, 2)), 0) -> 0 | I8: =IF(I7=1, (Storage_pack_capexperkWh*VLOOKUP(I6, 'Cost projections'!$C$10:$D$55, 2)/VLOOKUP(Storage_base_year, 'Cost projections'!$C$10:$D$55, 2)), 0) -> 0 | J8: =IF(J7=1, (Storage_pack_capexperkWh*VLOOKUP(J6, 'Cost projections'!$C$10:$D$55, 2)/VLOOKUP(Storage_base_year, 'Cost projections'!$C$10:$D$55, 2)), 0) -> 0 | K8: =IF(K7=1, (Storage_pack_capexperkWh*VLOOKUP(K6, 'Cost projections'!$C$10:$D$55, 2)/VLOOKUP(Storage_base_year, 'Cost projections'!$C$10:$D$55, 2)), 0) -> 0 | L8: =IF(L7=1, (Storage_pack_capexperkWh*VLOOKUP(L6, 'Cost projections'!$C$10:$D$55, 2)/VLOOKUP(Storage_base_year, 'Cost projections'!$C$10:$D$55, 2)), 0) -> 0 | M8: =IF(M7=1, (Storage_pack_capexperkWh*VLOOKUP(M6, 'Cost projections'!$C$10:$D$55, 2)/VLOOKUP(Storage_base_year, 'Cost projections'!$C$10:$D$55, 2)), 0) -> 0 | N8: =IF(N7=1, (Storage_pack_capexperkWh*VLOOKUP(N6, 'Cost projections'!$C$10:$D$55, 2)/VLOOKUP(Storage_base_year, 'Cost projections'!$C$10:$D$55, 2)), 0) -> 7400.389165 | O8: =IF(O7=1, (Storage_pack_capexperkWh*VLOOKUP(O6, 'Cost projections'!$C$10:$D$55, 2)/VLOOKUP(Storage_base_year, 'Cost projections'!$C$10:$D$55, 2)), 0) -> 0 | P8: =IF(P7=1, (Storage_pack_capexperkWh*VLOOKUP(P6, 'Cost projections'!$C$10:$D$55, 2)/VLOOKUP(Storage_base_year, 'Cost projections'!$C$10:$D$55, 2)), 0) -> 0 | Q8: =IF(Q7=1, (Storage_pack_capexperkWh*VLOOKUP(Q6, 'Cost projections'!$C$10:$D$55, 2)/VLOOKUP(Storage_base_year, 'Cost projections'!$C$10:$D$55, 2)), 0) -> 0 | R8: =IF(R7=1, (Storage_pack_capexperkWh*VLOOKUP(R6, 'Cost projections'!$C$10:$D$55, 2)/VLOOKUP(Storage_base_year, 'Cost projections'!$C$10:$D$55, 2)), 0) -> 0 | S8: =IF(S7=1, (Storage_pack_capexperkWh*VLOOKUP(S6, 'Cost projections'!$C$10:$D$55, 2)/VLOOKUP(Storage_base_year, 'Cost projections'!$C$10:$D$55, 2)), 0) -> 0 | T8: =IF(T7=1, (Storage_pack_capexperkWh*VLOOKUP(T6, 'Cost projections'!$C$10:$D$55, 2)/VLOOKUP(Storage_base_year, 'Cost projections'!$C$10:$D$55, 2)), 0) -> 0 | U8: =IF(U7=1, (Storage_pack_capexperkWh*VLOOKUP(U6, 'Cost projections'!$C$10:$D$55, 2)/VLOOKUP(Storage_base_year, 'Cost projections'!$C$10:$D$55, 2)), 0) -> 0 | V8: =IF(V7=1, (Storage_pack_capexperkWh*VLOOKUP(V6, 'Cost projections'!$C$10:$D$55, 2)/VLOOKUP(Storage_base_year, 'Cost projections'!$C$10:$D$55, 2)), 0) -> 0 | W8: =IF(W7=1, (Storage_pack_capexperkWh*VLOOKUP(W6, 'Cost projections'!$C$10:$D$55, 2)/VLOOKUP(Storage_base_year, 'Cost projections'!$C$10:$D$55, 2)), 0) -> 5187.169968 | X8: =IF(X7=1, (Storage_pack_capexperkWh*VLOOKUP(X6, 'Cost projections'!$C$10:$D$55, 2)/VLOOKUP(Storage_base_year, 'Cost projections'!$C$10:$D$55, 2)), 0) -> 0 | Y8: =IF(Y7=1, (Storage_pack_capexperkWh*VLOOKUP(Y6, 'Cost projections'!$C$10:$D$55, 2)/VLOOKUP(Storage_base_year, 'Cost projections'!$C$10:$D$55, 2)), 0) -> 0 | Z8: =IF(Z7=1, (Storage_pack_capexperkWh*VLOOKUP(Z6, 'Cost projections'!$C$10:$D$55, 2)/VLOOKUP(Storage_base_year, 'Cost projections'!$C$10:$D$55, 2)), 0) -> 0 | AA8: =IF(AA7=1, (Storage_pack_capexperkWh*VLOOKUP(AA6, 'Cost projections'!$C$10:$D$55, 2)/VLOOKUP(Storage_base_year, 'Cost projections'!$C$10:$D$55, 2)), 0) -> 0 | AB8: =IF(AB7=1, (Storage_pack_capexperkWh*VLOOKUP(AB6, 'Cost projections'!$C$10:$D$55, 2)/VLOOKUP(Storage_base_year, 'Cost projections'!$C$10:$D$55, 2)), 0) -> 0 | AC8: =IF(AC7=1, (Storage_pack_capexperkWh*VLOOKUP(AC6, 'Cost projections'!$C$10:$D$55, 2)/VLOOKUP(Storage_base_year, 'Cost projections'!$C$10:$D$55, 2)), 0) -> 0
B9: Gross capital cost | C9: INR | E9: =IF(E7=1, (E8*Storage_capacity+Storage_enclosure_capexperkWh*Storage_capacity)*(1+Storage_system_GST)+Storage_installation_cost*(1+Storage_installation_GST), 0) -> 964968 | F9: 0 | G9: 0 | H9: 0 | I9: 0 | J9: 0 | K9: 0 | L9: 0 | M9: 0 | N9: 435787.6139 | O9: 0 | P9: 0 | Q9: 0 | R9: 0 | S9: 0 | T9: 0 | U9: 0 | V9: 0 | W9: 324241.3664 | X9: 0 | Y9: 0 | Z9: 0 | AA9: 0 | AB9: 0 | AC9: 0
B10: Net capital cost | C10: INR | E10: =IF(E7=1, (E8*Storage_capacity+Storage_enclosure_capexperkWh*Storage_capacity)*(1-Storage_capitalsubsidy_percentage)*(1+Storage_system_GST)+Storage_installation_cost*(1+Storage_installation_GST), 0) -> 964968 | F10: 0 | G10: 0 | H10: 0 | I10: 0 | J10: 0 | K10: 0 | L10: 0 | M10: 0 | N10: 435787.6139 | O10: 0 | P10: 0 | Q10: 0 | R10: 0 | S10: 0 | T10: 0 | U10: 0 | V10: 0 | W10: 324241.3664 | X10: 0 | Y10: 0 | Z10: 0 | AA10: 0 | AB10: 0 | AC10: 0
B11: Equity | C11: INR | E11: =E10*Storage_equity_percentage -> 289490.4 | F11: 0 | G11: 0 | H11: 0 | I11: 0 | J11: 0 | K11: 0 | L11: 0 | M11: 0 | N11: 130736.2842 | O11: 0 | P11: 0 | Q11: 0 | R11: 0 | S11: 0 | T11: 0 | U11: 0 | V11: 0 | W11: 97272.40992 | X11: 0 | Y11: 0 | Z11: 0 | AA11: 0 | AB11: 0 | AC11: 0
B12: Debt | C12: INR | E12: =E10-E11 -> 675477.6 | F12: =F10-F11 -> 0 | G12: 0 | H12: 0 | I12: 0 | J12: 0 | K12: 0 | L12: 0 | M12: 0 | N12: 305051.3298 | O12: 0 | P12: 0 | Q12: 0 | R12: 0 | S12: 0 | T12: 0 | U12: 0 | V12: 0 | W12: 226968.9565 | X12: 0 | Y12: 0 | Z12: 0 | AA12: 0 | AB12: 0 | AC12: 0
B13: Annual depreciation (on gross capital cost) | C13: INR | E13: =IF(E7=1, E9*Storage_depreciationrate_storage,#REF!) -> 96496.8 | F13: =IF(F7=1, F9*Storage_depreciationrate_storage, E13) -> 96496.8 | G13: 96496.8 | H13: 96496.8 | I13: 96496.8 | J13: 96496.8 | K13: 96496.8 | L13: 96496.8 | M13: 96496.8 | N13: 43578.76139 | O13: 43578.76139 | P13: 43578.76139 | Q13: 43578.76139 | R13: 43578.76139 | S13: 43578.76139 | T13: 43578.76139 | U13: 43578.76139 | V13: 43578.76139 | W13: 32424.13664 | X13: 32424.13664 | Y13: 32424.13664 | Z13: 32424.13664 | AA13: 32424.13664 | AB13: 32424.13664 | AC13: 32424.13664
B14: Annual depreciation (on net capital cost) | C14: INR | E14: =IF(E7=1, E10*Storage_depreciationrate_storage,#REF!) -> 96496.8 | F14: =IF(F7=1, F10*Storage_depreciationrate_storage, E14) -> 96496.8 | G14: 96496.8 | H14: 96496.8 | I14: 96496.8 | J14: 96496.8 | K14: 96496.8 | L14: 96496.8 | M14: 96496.8 | N14: 43578.76139 | O14: 43578.76139 | P14: 43578.76139 | Q14: 43578.76139 | R14: 43578.76139 | S14: 43578.76139 | T14: 43578.76139 | U14: 43578.76139 | V14: 43578.76139 | W14: 32424.13664 | X14: 32424.13664 | Y14: 32424.13664 | Z14: 32424.13664 | AA14: 32424.13664 | AB14: 32424.13664 | AC14: 32424.13664
B15: Asset value | C15: INR | E15: =IF(E7=1, E9,#REF! -#REF!) -> 964968 | F15: =IF(F7=1, F9, E15-E13) -> 868471.2 | G15: =IF(G7=1, G9, F15-F13) -> 771974.4 | H15: 675477.6 | I15: 578980.8 | J15: 482484 | K15: 385987.2 | L15: 289490.4 | M15: 192993.6 | N15: 435787.6139 | O15: 392208.8525 | P15: 348630.0911 | Q15: 305051.3298 | R15: 261472.5684 | S15: 217893.807 | T15: 174315.0456 | U15: 130736.2842 | V15: 87157.52279 | W15: 324241.3664 | X15: 291817.2298 | Y15: 259393.0931 | Z15: 226968.9565 | AA15: 194544.8198 | AB15: 162120.6832 | AC15: 129696.5466
B16: Operation and Maintenance Expenses | C16: INR | E16: =IF(E3=1,Storage_capacity*Storage_OndMenergy_year1,#REF!+(#REF!* Storage_OandM_escalation)) -> 19200 | F16: =IF(F3=1,Storage_capacity*Storage_OndMenergy_year1, E16+(E16*Storage_OandM_escalation)) -> 19937.28 | G16: 20702.87155 | H16: 21497.86182 | I16: 22323.37971 | J16: 23180.59749 | K16: 24070.73244 | L16: 24995.04856 | M16: 25954.85843 | N16: 26951.52499 | O16: 27986.46355 | P16: 29061.14375 | Q16: 30177.09167 | R16: 31335.89199 | S16: 32539.19025 | T16: 33788.69515 | U16: 35086.18104 | V16: 36433.4904 | W16: 37832.53643 | X16: 39285.30583 | Y16: 40793.86157 | Z16: 42360.34585 | AA16: 43986.98314 | AB16: 45676.08329 | AC16: 47430.04489
B17: Insurance | C17: INR | E17: =Storage_insurance*E15 -> 0 | F17: 0 | G17: 0 | H17: 0 | I17: 0 | J17: 0 | K17: 0 | L17: 0 | M17: 0 | N17: 0 | O17: 0 | P17: 0 | Q17: 0 | R17: 0 | S17: 0 | T17: 0 | U17: 0 | V17: 0 | W17: 0 | X17: 0 | Y17: 0 | Z17: 0 | AA17: 0 | AB17: 0 | AC17: 0
B18: Interest on Term Loan | C18: INR | E18: =E26 -> 65318.68392 | F18: =F26 -> 65318.68392 | G18: 57153.84843 | H18: 48989.01294 | I18: 40824.17745 | J18: 32659.34196 | K18: 24494.50647 | L18: 16329.67098 | M18: 8164.83549 | N18: 29498.46359 | O18: 29498.46359 | P18: 25811.15564 | Q18: 22123.84769 | R18: 18436.53974 | S18: 14749.23179 | T18: 11061.92385 | U18: 7374.615897 | V18: 3687.307948 | W18: 21947.89809 | X18: 21947.89809 | Y18: 19204.41083 | Z18: 16460.92357 | AA18: 13717.43631 | AB18: 10973.94905 | AC18: 8230.461784
B19: Interest on Working Capital | C19: INR | E19: =E32+E34 -> 3665.385267 | F19: =F32+F34 -> 3695.163817 | G19: 3612.084347 | H19: 3530.192284 | I19: 3449.533224 | J19: 3370.154514 | K19: 3292.105319 | L19: 3215.436694 | M19: 3140.201652 | N19: 2393.669149 | O19: 2435.470051 | P19: 2427.39207 | Q19: 2420.980883 | R19: 2416.300492 | S19: 2413.417361 | T19: 2412.400506 | U19: 2413.32159 | V19: 2416.255031 | W19: 2499.089844 | X19: 2557.766826 | Y19: 2580.391063 | Z19: 2605.355019 | AA19: 2632.74854 | AB19: 2662.664919 | AC19: 2695.201036
B20: Return on Equity | C20: INR | E20: =OFFSET(E11,0,1-E7)*Storage_ROE -> 45160.5024 | F20: 45160.5024 | G20: 45160.5024 | H20: 45160.5024 | I20: 45160.5024 | J20: 45160.5024 | K20: 45160.5024 | L20: 45160.5024 | M20: 45160.5024 | N20: 20394.86033 | O20: 20394.86033 | P20: 20394.86033 | Q20: 20394.86033 | R20: 20394.86033 | S20: 20394.86033 | T20: 20394.86033 | U20: 20394.86033 | V20: 20394.86033 | W20: 15174.49595 | X20: 15174.49595 | Y20: 15174.49595 | Z20: 15174.49595 | AA20: 15174.49595 | AB20: 15174.49595 | AC20: 15174.49595
B22: Debt
B23: Debt opening balance | C23: INR | E23: =IF(E7=1, E12,#REF!) -> 675477.6 | F23: =IF(F7=1, F12, E25) -> 675477.6 | G23: 591042.9 | H23: 506608.2 | I23: 422173.5 | J23: 337738.8 | K23: 253304.1 | L23: 168869.4 | M23: 84434.7 | N23: 305051.3298 | O23: 305051.3298 | P23: 266919.9135 | Q23: 228788.4973 | R23: 190657.0811 | S23: 152525.6649 | T23: 114394.2487 | U23: 76262.83244 | V23: 38131.41622 | W23: 226968.9565 | X23: 226968.9565 | Y23: 198597.8369 | Z23: 170226.7174 | AA23: 141855.5978 | AB23: 113484.4782 | AC23: 85113.35868
B24: Debt repayment | C24: INR | E24: =IF(E7>Storage_moratorium, IF(E23>0, OFFSET(E12,0,1-E7)/(Storage_life-Storage_moratorium), 0), 0) -> 0 | F24: 84434.7 | G24: 84434.7 | H24: 84434.7 | I24: 84434.7 | J24: 84434.7 | K24: 84434.7 | L24: 84434.7 | M24: 84434.7 | N24: 0 | O24: 38131.41622 | P24: 38131.41622 | Q24: 38131.41622 | R24: 38131.41622 | S24: 38131.41622 | T24: 38131.41622 | U24: 38131.41622 | V24: 38131.41622 | W24: 0 | X24: 28371.11956 | Y24: 28371.11956 | Z24: 28371.11956 | AA24: 28371.11956 | AB24: 28371.11956 | AC24: 28371.11956
B25: Debt closing balance | C25: INR | E25: =E23-E24 -> 675477.6 | F25: =F23-F24 -> 591042.9 | G25: =G23-G24 -> 506608.2 | H25: =H23-H24 -> 422173.5 | I25: 337738.8 | J25: 253304.1 | K25: 168869.4 | L25: 84434.7 | M25: 0 | N25: 305051.3298 | O25: 266919.9135 | P25: 228788.4973 | Q25: 190657.0811 | R25: 152525.6649 | S25: 114394.2487 | T25: 76262.83244 | U25: 38131.41622 | V25: 0 | W25: 226968.9565 | X25: 198597.8369 | Y25: 170226.7174 | Z25: 141855.5978 | AA25: 113484.4782 | AB25: 85113.35868 | AC25: 56742.23912
B26: Interest | C26: INR | E26: =Storage_interest*E23 -> 65318.68392 | F26: 65318.68392 | G26: 57153.84843 | H26: 48989.01294 | I26: 40824.17745 | J26: 32659.34196 | K26: 24494.50647 | L26: 16329.67098 | M26: 8164.83549 | N26: 29498.46359 | O26: 29498.46359 | P26: 25811.15564 | Q26: 22123.84769 | R26: 18436.53974 | S26: 14749.23179 | T26: 11061.92385 | U26: 7374.615897 | V26: 3687.307948 | W26: 21947.89809 | X26: 21947.89809 | Y26: 19204.41083 | Z26: 16460.92357 | AA26: 13717.43631 | AB26: 10973.94905 | AC26: 8230.461784
B27: Total debt service | C27: INR | E27: =E24+E26 -> 65318.68392 | F27: =F24+F26 -> 149753.3839 | G27: 141588.5484 | H27: 133423.7129 | I27: 125258.8775 | J27: 117094.042 | K27: 108929.2065 | L27: 100764.371 | M27: 92599.53549 | N27: 29498.46359 | O27: 67629.87981 | P27: 63942.57186 | Q27: 60255.26391 | R27: 56567.95596 | S27: 52880.64801 | T27: 49193.34006 | U27: 45506.03212 | V27: 41818.72417 | W27: 21947.89809 | X27: 50319.01765 | Y27: 47575.53039 | Z27: 44832.04313 | AA27: 42088.55587 | AB27: 39345.06861 | AC27: 36601.58134
B29: Working Capital
B30: Operation and Maintenance wcap | C30: INR | E30: =E16/(12/Storage_workingcapital_OandM) -> 1600 | F30: 1661.44 | G30: 1725.239296 | H30: 1791.488485 | I30: 1860.281643 | J30: 1931.716458 | K30: 2005.89437 | L30: 2082.920714 | M30: 2162.904869 | N30: 2245.960416 | O30: 2332.205296 | P30: 2421.761979 | Q30: 2514.757639 | R30: 2611.324333 | S30: 2711.599187 | T30: 2815.724596 | U30: 2923.84842 | V30: 3036.1242 | W30: 3152.711369 | X30: 3273.775486 | Y30: 3399.488464 | Z30: 3530.028821 | AA30: 3665.581928 | AB30: 3806.340274 | AC30: 3952.503741
B31: Maintenance spares wcap | C31: INR | E31: =E16*Storage_workingcapital_spares -> 2880 | F31: 2990.592 | G31: 3105.430733 | H31: 3224.679273 | I31: 3348.506957 | J31: 3477.089624 | K31: 3610.609866 | L31: 3749.257285 | M31: 3893.228764 | N31: 4042.728749 | O31: 4197.969533 | P31: 4359.171563 | Q31: 4526.563751 | R31: 4700.383799 | S31: 4880.878537 | T31: 5068.304273 | U31: 5262.927157 | V31: 5465.02356 | W31: 5674.880464 | X31: 5892.795874 | Y31: 6119.079236 | Z31: 6354.051878 | AA31: 6598.04747 | AB31: 6851.412493 | AC31: 7114.506733
B32: Interest on O&M wcap | C32: INR | E32: =(E30+E31)*Storage_interest_workingcap -> 500.416 | F32: 519.6319744 | G32: 539.5858422 | H32: 560.3059386 | I32: 581.8216866 | J32: 604.1636394 | K32: 627.3635231 | L32: 651.4542824 | M32: 676.4701268 | N32: 702.4465797 | O32: 729.4205284 | P32: 757.4302767 | Q32: 786.5155993 | R32: 816.7177983 | S32: 848.0797618 | T32: 880.6460246 | U32: 914.462832 | V32: 949.5782047 | W32: 986.0420078 | X32: 1023.906021 | Y32: 1063.224012 | Z32: 1104.051814 | AA32: 1146.447404 | AB32: 1190.470984 | AC32: 1236.18507
B33: Receivables wcap | C33: INR | E33: =IF(Storage_workingcapital_receivables>0, (E16+E17+E14+E18+E20+E32)/(12/Storage_workingcapital_receivables),0) -> 28334.55029 | F33: 28429.11229 | G33: 27506.70103 | H33: 26588.06039 | I33: 25673.33516 | J33: 24762.67569 | K33: 23856.2381 | L33: 22954.18453 | M33: 22056.68331 | N33: 15140.75711 | O33: 15273.49617 | P33: 14950.41892 | Q33: 14632.63459 | R33: 14320.34641 | S33: 14013.76544 | T33: 13713.11084 | U33: 13418.61019 | V33: 13130.49978 | W33: 13545.63864 | X33: 13731.96782 | Y33: 13582.51612 | Z33: 13440.49423 | AA33: 13306.18743 | AB33: 13179.89199 | AC33: 13061.91554
B34: Interest on reveivables wcap | C34: INR | E34: =E33*Storage_interest_workingcap -> 3164.969267 | F34: 3175.531842 | G34: 3072.498505 | H34: 2969.886345 | I34: 2867.711537 | J34: 2765.990874 | K34: 2664.741796 | L34: 2563.982412 | M34: 2463.731525 | N34: 1691.222569 | O34: 1706.049523 | P34: 1669.961794 | Q34: 1634.465283 | R34: 1599.582694 | S34: 1565.3376 | T34: 1531.754481 | U34: 1498.858758 | V34: 1466.676826 | W34: 1513.047836 | X34: 1533.860805 | Y34: 1517.167051 | Z34: 1501.303205 | AA34: 1486.301136 | AB34: 1472.193935 | AC34: 1459.015966
B36: Inverter cost timeline
B37: Year | E37: =Storage_base_year -> 2020 | F37: =E37+1 -> 2021 | G37: =F37+1 -> 2022 | H37: 2023 | I37: 2024 | J37: 2025 | K37: 2026 | L37: 2027 | M37: 2028 | N37: 2029 | O37: 2030 | P37: 2031 | Q37: 2032 | R37: 2033 | S37: 2034 | T37: 2035 | U37: 2036 | V37: 2037 | W37: 2038 | X37: 2039 | Y37: 2040 | Z37: 2041 | AA37: 2042 | AB37: 2043 | AC37: 2044
B38: Inverter operation year | E38: =IF(MOD(E3,Storage_inverter_replacementyear-1)=0, Storage_inverter_replacementyear-1, MOD(E3,Storage_inverter_replacementyear-1)) -> 1 | F38: 2 | G38: 3 | H38: 4 | I38: 5 | J38: 6 | K38: 7 | L38: 8 | M38: 9 | N38: 10 | O38: 11 | P38: 12 | Q38: 13 | R38: 1 | S38: 2 | T38: 3 | U38: 4 | V38: 5 | W38: 6 | X38: 7 | Y38: 8 | Z38: 9 | AA38: 10 | AB38: 11 | AC38: 12
B39: Inverter capital cost per kWh in year n | C39: INR | E39: =IF(E38=1, Storage_invertercapex_perkW*(1+Storage_inverter_GST)*VLOOKUP(E37, 'Cost projections'!$C$114:$E$254, 3)/VLOOKUP(Storage_base_year, 'Cost projections'!$C$114:$E$154, 3), 0) -> 37485 | F39: =IF(F38=1, Storage_invertercapex_perkW*(1+Storage_inverter_GST)*VLOOKUP(F37, 'Cost projections'!$C$114:$E$254, 3)/VLOOKUP(Storage_base_year, 'Cost projections'!$C$114:$E$154, 3), 0) -> 0 | G39: =IF(G38=1, Storage_invertercapex_perkW*(1+Storage_inverter_GST)*VLOOKUP(G37, 'Cost projections'!$C$114:$E$254, 3)/VLOOKUP(Storage_base_year, 'Cost projections'!$C$114:$E$154, 3), 0) -> 0 | H39: =IF(H38=1, Storage_invertercapex_perkW*(1+Storage_inverter_GST)*VLOOKUP(H37, 'Cost projections'!$C$114:$E$254, 3)/VLOOKUP(Storage_base_year, 'Cost projections'!$C$114:$E$154, 3), 0) -> 0 | I39: =IF(I38=1, Storage_invertercapex_perkW*(1+Storage_inverter_GST)*VLOOKUP(I37, 'Cost projections'!$C$114:$E$254, 3)/VLOOKUP(Storage_base_year, 'Cost projections'!$C$114:$E$154, 3), 0) -> 0 | J39: =IF(J38=1, Storage_invertercapex_perkW*(1+Storage_inverter_GST)*VLOOKUP(J37, 'Cost projections'!$C$114:$E$254, 3)/VLOOKUP(Storage_base_year, 'Cost projections'!$C$114:$E$154, 3), 0) -> 0 | K39: =IF(K38=1, Storage_invertercapex_perkW*(1+Storage_inverter_GST)*VLOOKUP(K37, 'Cost projections'!$C$114:$E$254, 3)/VLOOKUP(Storage_base_year, 'Cost projections'!$C$114:$E$154, 3), 0) -> 0 | L39: =IF(L38=1, Storage_invertercapex_perkW*(1+Storage_inverter_GST)*VLOOKUP(L37, 'Cost projections'!$C$114:$E$254, 3)/VLOOKUP(Storage_base_year, 'Cost projections'!$C$114:$E$154, 3), 0) -> 0 | M39: =IF(M38=1, Storage_invertercapex_perkW*(1+Storage_inverter_GST)*VLOOKUP(M37, 'Cost projections'!$C$114:$E$254, 3)/VLOOKUP(Storage_base_year, 'Cost projections'!$C$114:$E$154, 3), 0) -> 0 | N39: =IF(N38=1, Storage_invertercapex_perkW*(1+Storage_inverter_GST)*VLOOKUP(N37, 'Cost projections'!$C$114:$E$254, 3)/VLOOKUP(Storage_base_year, 'Cost projections'!$C$114:$E$154, 3), 0) -> 0 | O39: =IF(O38=1, Storage_invertercapex_perkW*(1+Storage_inverter_GST)*VLOOKUP(O37, 'Cost projections'!$C$114:$E$254, 3)/VLOOKUP(Storage_base_year, 'Cost projections'!$C$114:$E$154, 3), 0) -> 0 | P39: =IF(P38=1, Storage_invertercapex_perkW*(1+Storage_inverter_GST)*VLOOKUP(P37, 'Cost projections'!$C$114:$E$254, 3)/VLOOKUP(Storage_base_year, 'Cost projections'!$C$114:$E$154, 3), 0) -> 0 | Q39: =IF(Q38=1, Storage_invertercapex_perkW*(1+Storage_inverter_GST)*VLOOKUP(Q37, 'Cost projections'!$C$114:$E$254, 3)/VLOOKUP(Storage_base_year, 'Cost projections'!$C$114:$E$154, 3), 0) -> 0 | R39: =IF(R38=1, Storage_invertercapex_perkW*(1+Storage_inverter_GST)*VLOOKUP(R37, 'Cost projections'!$C$114:$E$254, 3)/VLOOKUP(Storage_base_year, 'Cost projections'!$C$114:$E$154, 3), 0) -> 16822.89658 | S39: =IF(S38=1, Storage_invertercapex_perkW*(1+Storage_inverter_GST)*VLOOKUP(S37, 'Cost projections'!$C$114:$E$254, 3)/VLOOKUP(Storage_base_year, 'Cost projections'!$C$114:$E$154, 3), 0) -> 0 | T39: =IF(T38=1, Storage_invertercapex_perkW*(1+Storage_inverter_GST)*VLOOKUP(T37, 'Cost projections'!$C$114:$E$254, 3)/VLOOKUP(Storage_base_year, 'Cost projections'!$C$114:$E$154, 3), 0) -> 0 | U39: =IF(U38=1, Storage_invertercapex_perkW*(1+Storage_inverter_GST)*VLOOKUP(U37, 'Cost projections'!$C$114:$E$254, 3)/VLOOKUP(Storage_base_year, 'Cost projections'!$C$114:$E$154, 3), 0) -> 0 | V39: =IF(V38=1, Storage_invertercapex_perkW*(1+Storage_inverter_GST)*VLOOKUP(V37, 'Cost projections'!$C$114:$E$254, 3)/VLOOKUP(Storage_base_year, 'Cost projections'!$C$114:$E$154, 3), 0) -> 0 | W39: =IF(W38=1, Storage_invertercapex_perkW*(1+Storage_inverter_GST)*VLOOKUP(W37, 'Cost projections'!$C$114:$E$254, 3)/VLOOKUP(Storage_base_year, 'Cost projections'!$C$114:$E$154, 3), 0) -> 0 | X39: =IF(X38=1, Storage_invertercapex_perkW*(1+Storage_inverter_GST)*VLOOKUP(X37, 'Cost projections'!$C$114:$E$254, 3)/VLOOKUP(Storage_base_year, 'Cost projections'!$C$114:$E$154, 3), 0) -> 0 | Y39: =IF(Y38=1, Storage_invertercapex_perkW*(1+Storage_inverter_GST)*VLOOKUP(Y37, 'Cost projections'!$C$114:$E$254, 3)/VLOOKUP(Storage_base_year, 'Cost projections'!$C$114:$E$154, 3), 0) -> 0 | Z39: =IF(Z38=1, Storage_invertercapex_perkW*(1+Storage_inverter_GST)*VLOOKUP(Z37, 'Cost projections'!$C$114:$E$254, 3)/VLOOKUP(Storage_base_year, 'Cost projections'!$C$114:$E$154, 3), 0) -> 0 | AA39: =IF(AA38=1, Storage_invertercapex_perkW*(1+Storage_inverter_GST)*VLOOKUP(AA37, 'Cost projections'!$C$114:$E$254, 3)/VLOOKUP(Storage_base_year, 'Cost projections'!$C$114:$E$154, 3), 0) -> 0 | AB39: =IF(AB38=1, Storage_invertercapex_perkW*(1+Storage_inverter_GST)*VLOOKUP(AB37, 'Cost projections'!$C$114:$E$254, 3)/VLOOKUP(Storage_base_year, 'Cost projections'!$C$114:$E$154, 3), 0) -> 0 | AC39: =IF(AC38=1, Storage_invertercapex_perkW*(1+Storage_inverter_GST)*VLOOKUP(AC37, 'Cost projections'!$C$114:$E$254, 3)/VLOOKUP(Storage_base_year, 'Cost projections'!$C$114:$E$154, 3), 0) -> 0
B40: Capital cost | C40: INR | E40: =IF(E38=1, Storage_inverter_capacity*E39, 0) -> 850909.5 | F40: 0 | G40: 0 | H40: 0 | I40: 0 | J40: 0 | K40: 0 | L40: 0 | M40: 0 | N40: 0 | O40: 0 | P40: 0 | Q40: 0 | R40: 381879.7523 | S40: 0 | T40: 0 | U40: 0 | V40: 0 | W40: 0 | X40: 0 | Y40: 0 | Z40: 0 | AA40: 0 | AB40: 0 | AC40: 0
B41: Equity | C41: INR | E41: =E40*Storage_equity_percentage -> 255272.85 | F41: 0 | G41: 0 | H41: 0 | I41: 0 | J41: 0 | K41: 0 | L41: 0 | M41: 0 | N41: 0 | O41: 0 | P41: 0 | Q41: 0 | R41: 114563.9257 | S41: 0 | T41: 0 | U41: 0 | V41: 0 | W41: 0 | X41: 0 | Y41: 0 | Z41: 0 | AA41: 0 | AB41: 0 | AC41: 0
B42: Debt | C42: INR | E42: =E40-E41 -> 595636.65 | F42: 0 | G42: 0 | H42: 0 | I42: 0 | J42: 0 | K42: 0 | L42: 0 | M42: 0 | N42: 0 | O42: 0 | P42: 0 | Q42: 0 | R42: 267315.8266 | S42: 0 | T42: 0 | U42: 0 | V42: 0 | W42: 0 | X42: 0 | Y42: 0 | Z42: 0 | AA42: 0 | AB42: 0 | AC42: 0
B43: Annual depreciation | C43: INR | E43: =IF(E38=1, E40*Storage_depreciationrate_inverter,#REF!) -> 58909.11923 | F43: =IF(F38=1, F40*Storage_depreciationrate_inverter, E43) -> 58909.11923 | G43: 58909.11923 | H43: 58909.11923 | I43: 58909.11923 | J43: 58909.11923 | K43: 58909.11923 | L43: 58909.11923 | M43: 58909.11923 | N43: 58909.11923 | O43: 58909.11923 | P43: 58909.11923 | Q43: 58909.11923 | R43: 26437.829 | S43: 26437.829 | T43: 26437.829 | U43: 26437.829 | V43: 26437.829 | W43: 26437.829 | X43: 26437.829 | Y43: 26437.829 | Z43: 26437.829 | AA43: 26437.829 | AB43: 26437.829 | AC43: 26437.829
B44: Asset value | C44: INR | E44: =IF(E38=1, E40,#REF! -#REF!) -> 850909.5 | F44: =IF(F38=1, F40, E44-E43) -> 792000.3808 | G44: 733091.2615 | H44: 674182.1423 | I44: 615273.0231 | J44: 556363.9038 | K44: 497454.7846 | L44: 438545.6654 | M44: 379636.5462 | N44: 320727.4269 | O44: 261818.3077 | P44: 202909.1885 | Q44: 144000.0692 | R44: 381879.7523 | S44: 355441.9233 | T44: 329004.0943 | U44: 302566.2653 | V44: 276128.4363 | W44: 249690.6073 | X44: 223252.7783 | Y44: 196814.9493 | Z44: 170377.1202 | AA44: 143939.2912 | AB44: 117501.4622 | AC44: 91063.63324
B45: Operation and Maintenance Expenses | C45: INR | E45: =IF(E3=1,Storage_inverter_capacity*Storage_OandMpower_year1,#REF!+(#REF!* Storage_OandM_escalation)) -> 17025 | F45: =IF(F3=1,Storage_inverter_capacity*Storage_OandMpower_year1, E45+(E45*Storage_OandM_escalation)) -> 17678.76 | G45: 18357.62438 | H45: 19062.55716 | I45: 19794.55936 | J45: 20554.67043 | K45: 21343.96978 | L45: 22163.57822 | M45: 23014.65962 | N45: 23898.42255 | O45: 24816.12198 | P45: 25769.06106 | Q45: 26758.59301 | R45: 27786.12298 | S45: 28853.1101 | T45: 29961.06953 | U45: 31111.5746 | V45: 32306.25906 | W45: 33546.81941 | X45: 34835.01728 | Y45: 36172.68194 | Z45: 37561.71293 | AA45: 39004.0827 | AB45: 40501.83948 | AC45: 42057.11011
B46: Insurance | C46: INR | E46: =Storage_insurance*E44 -> 0 | F46: 0 | G46: 0 | H46: 0 | I46: 0 | J46: 0 | K46: 0 | L46: 0 | M46: 0 | N46: 0 | O46: 0 | P46: 0 | Q46: 0 | R46: 0 | S46: 0 | T46: 0 | U46: 0 | V46: 0 | W46: 0 | X46: 0 | Y46: 0 | Z46: 0 | AA46: 0 | AB46: 0 | AC46: 0
B47: Interest on term loan | C47: INR | E47: =E55 -> 57598.06405 | F47: =F55 -> 57598.06405 | G47: 52990.21893 | H47: 48382.37381 | I47: 43774.52868 | J47: 39166.68356 | K47: 34558.83843 | L47: 29950.99331 | M47: 25343.14818 | N47: 20735.30306 | O47: 16127.45794 | P47: 11519.61281 | Q47: 6911.767687 | R47: 25849.44043 | S47: 25849.44043 | T47: 23781.4852 | U47: 21713.52996 | V47: 19645.57473 | W47: 17577.61949 | X47: 15509.66426 | Y47: 13441.70902 | Z47: 11373.75379 | AA47: 9305.798556 | AB47: 7237.843321 | AC47: 5169.888086
B48: Interest on working capital | C48: INR | E48: =E61+E63 -> 2870.389473 | F48: =F61+F63 -> 2896.794671 | G48: 2859.876791 | H48: 2824.011807 | I48: 2789.24015 | J48: 2755.603803 | K48: 2723.146363 | L48: 2691.913099 | M48: 2661.951021 | N48: 2633.30894 | O48: 2606.037547 | P48: 2580.189473 | Q48: 2555.819376 | R48: 2101.87277 | S48: 2144.968105 | T48: 2160.844476 | U48: 2178.439255 | V48: 2197.818428 | W48: 2219.050516 | X48: 2242.206672 | Y48: 2267.360778 | Z48: 2294.589557 | AA48: 2323.972676 | AB48: 2355.592862 | AC48: 2389.536018
B49: Return on equity | C49: INR | E49: =OFFSET(E41,0,1-E38)*Storage_ROE -> 39822.5646 | F49: 39822.5646 | G49: 39822.5646 | H49: 39822.5646 | I49: 39822.5646 | J49: 39822.5646 | K49: 39822.5646 | L49: 39822.5646 | M49: 39822.5646 | N49: 39822.5646 | O49: 39822.5646 | P49: 39822.5646 | Q49: 39822.5646 | R49: 17871.97241 | S49: 17871.97241 | T49: 17871.97241 | U49: 17871.97241 | V49: 17871.97241 | W49: 17871.97241 | X49: 17871.97241 | Y49: 17871.97241 | Z49: 17871.97241 | AA49: 17871.97241 | AB49: 17871.97241 | AC49: 17871.97241
B51: Debt
B52: Debt opening balance | C52: INR | E52: =IF(E38=1, E42, D54) -> 595636.65 | F52: 595636.65 | G52: 547985.718 | H52: 500334.786 | I52: 452683.854 | J52: 405032.922 | K52: 357381.99 | L52: 309731.058 | M52: 262080.126 | N52: 214429.194 | O52: 166778.262 | P52: 119127.33 | Q52: 71476.398 | R52: 267315.8266 | S52: 267315.8266 | T52: 245930.5605 | U52: 224545.2943 | V52: 203160.0282 | W52: 181774.7621 | X52: 160389.496 | Y52: 139004.2298 | Z52: 117618.9637 | AA52: 96233.69758 | AB52: 74848.43145 | AC52: 53463.16532
B53: Debt repayment | C53: INR | E53: =IF(E38>Storage_moratorium, IF(E52>0, OFFSET(E42,0,1-E38)/(Storage_inverter_replacementyear-1-Moratorium), 0), 0) -> 0 | F53: 47650.932 | G53: 47650.932 | H53: 47650.932 | I53: 47650.932 | J53: 47650.932 | K53: 47650.932 | L53: 47650.932 | M53: 47650.932 | N53: 47650.932 | O53: 47650.932 | P53: 47650.932 | Q53: 47650.932 | R53: 0 | S53: 21385.26613 | T53: 21385.26613 | U53: 21385.26613 | V53: 21385.26613 | W53: 21385.26613 | X53: 21385.26613 | Y53: 21385.26613 | Z53: 21385.26613 | AA53: 21385.26613 | AB53: 21385.26613 | AC53: 21385.26613
B54: Debt closing balance | C54: INR | E54: =E52-E53 -> 595636.65 | F54: =F52-F53 -> 547985.718 | G54: =G52-G53 -> 500334.786 | H54: =H52-H53 -> 452683.854 | I54: 405032.922 | J54: 357381.99 | K54: 309731.058 | L54: 262080.126 | M54: 214429.194 | N54: 166778.262 | O54: 119127.33 | P54: 71476.398 | Q54: 23825.466 | R54: 267315.8266 | S54: 245930.5605 | T54: 224545.2943 | U54: 203160.0282 | V54: 181774.7621 | W54: 160389.496 | X54: 139004.2298 | Y54: 117618.9637 | Z54: 96233.69758 | AA54: 74848.43145 | AB54: 53463.16532 | AC54: 32077.89919
B55: Interest | C55: INR | E55: =Storage_interest*E52 -> 57598.06405 | F55: 57598.06405 | G55: 52990.21893 | H55: 48382.37381 | I55: 43774.52868 | J55: 39166.68356 | K55: 34558.83843 | L55: 29950.99331 | M55: 25343.14818 | N55: 20735.30306 | O55: 16127.45794 | P55: 11519.61281 | Q55: 6911.767687 | R55: 25849.44043 | S55: 25849.44043 | T55: 23781.4852 | U55: 21713.52996 | V55: 19645.57473 | W55: 17577.61949 | X55: 15509.66426 | Y55: 13441.70902 | Z55: 11373.75379 | AA55: 9305.798556 | AB55: 7237.843321 | AC55: 5169.888086
B56: Total debt service | C56: INR | E56: =E53+E55 -> 57598.06405 | F56: =F53+F55 -> 105248.9961 | G56: 100641.1509 | H56: 96033.30581 | I56: 91425.46068 | J56: 86817.61556 | K56: 82209.77043 | L56: 77601.92531 | M56: 72994.08018 | N56: 68386.23506 | O56: 63778.38994 | P56: 59170.54481 | Q56: 54562.69969 | R56: 25849.44043 | S56: 47234.70656 | T56: 45166.75133 | U56: 43098.79609 | V56: 41030.84086 | W56: 38962.88562 | X56: 36894.93039 | Y56: 34826.97515 | Z56: 32759.01992 | AA56: 30691.06468 | AB56: 28623.10945 | AC56: 26555.15421
B58: Working Capital
B59: Operation and Maintenance wcap | C59: INR | E59: =E45/(12/Storage_workingcapital_OandM) -> 1418.75 | F59: 1473.23 | G59: 1529.802032 | H59: 1588.54643 | I59: 1649.546613 | J59: 1712.889203 | K59: 1778.664148 | L59: 1846.964852 | M59: 1917.888302 | N59: 1991.535213 | O59: 2068.010165 | P59: 2147.421755 | Q59: 2229.882751 | R59: 2315.510248 | S59: 2404.425842 | T59: 2496.755794 | U59: 2592.631217 | V59: 2692.188255 | W59: 2795.568284 | X59: 2902.918106 | Y59: 3014.390162 | Z59: 3130.142744 | AA59: 3250.340225 | AB59: 3375.15329 | AC59: 3504.759176
B60: Maintenance spares wcap | C60: INR | E60: =E45*Storage_workingcapital_spares -> 2553.75 | F60: 2651.814 | G60: 2753.643658 | H60: 2859.383574 | I60: 2969.183903 | J60: 3083.200565 | K60: 3201.595467 | L60: 3324.536733 | M60: 3452.198943 | N60: 3584.763383 | O60: 3722.418297 | P60: 3865.359159 | Q60: 4013.788951 | R60: 4167.918447 | S60: 4327.966515 | T60: 4494.160429 | U60: 4666.73619 | V60: 4845.938859 | W60: 5032.022912 | X60: 5225.252591 | Y60: 5425.902291 | Z60: 5634.256939 | AA60: 5850.612405 | AB60: 6075.275922 | AC60: 6308.566517
B61: Interest on O&M wcap | C61: INR | E61: =(E59+E60)*Storage_interest_workingcap -> 443.72825 | F61: 460.7674148 | G61: 478.4608835 | H61: 496.8337815 | I61: 515.9121987 | J61: 535.7232271 | K61: 556.294999 | L61: 577.656727 | M61: 599.8387453 | N61: 622.8725531 | O61: 646.7908591 | P61: 671.6276281 | Q61: 697.4181291 | R61: 724.1989852 | S61: 752.0082262 | T61: 780.8853421 | U61: 810.8713393 | V61: 842.0087987 | W61: 874.3419366 | X61: 907.9166669 | Y61: 942.7806669 | Z61: 978.9834446 | AA61: 1016.576409 | AB61: 1055.612943 | AC61: 1096.14848
B62: Receivables wcap | C62: INR | E62: =IF(Storage_workingcapital_receivables>0, (E45+E46+E43+E47+E49+E61)/(12/Storage_workingcapital_receivables),0) -> 21724.80952 | F62: 21808.65941 | G62: 21319.7485 | H62: 20834.18107 | I62: 20352.08551 | J62: 19873.59513 | K62: 19398.84838 | L62: 18927.98901 | M62: 18461.1663 | N62: 17998.53525 | O62: 17540.25683 | P62: 17086.49817 | Q62: 16637.43283 | R62: 12333.69548 | S62: 12470.54502 | T62: 12354.15518 | U62: 12243.22216 | V62: 12137.9555 | W62: 12038.57278 | X62: 11945.29995 | Y62: 11858.37163 | Z62: 11778.03145 | AA62: 11704.53238 | AB62: 11638.13714 | AC62: 11579.11851
B63: Interest on reveivables wcap | C63: INR | E63: =E62*Storage_interest_workingcap -> 2426.661223 | F63: 2436.027256 | G63: 2381.415908 | H63: 2327.178026 | I63: 2273.327951 | J63: 2219.880576 | K63: 2166.851364 | L63: 2114.256372 | M63: 2062.112275 | N63: 2010.436387 | O63: 1959.246687 | P63: 1908.561845 | Q63: 1858.401247 | R63: 1377.673785 | S63: 1392.959879 | T63: 1379.959134 | U63: 1367.567916 | V63: 1355.809629 | W63: 1344.70858 | X63: 1334.290005 | Y63: 1324.580111 | Z63: 1315.606113 | AA63: 1307.396267 | AB63: 1299.979919 | AC63: 1293.387538
B65: Solar PV cost timeline
B66: Year | E66: =Storage_base_year -> 2020 | F66: =E66+1 -> 2021 | G66: =F66+1 -> 2022 | H66: 2023 | I66: 2024 | J66: 2025 | K66: 2026 | L66: 2027 | M66: 2028 | N66: 2029 | O66: 2030 | P66: 2031 | Q66: 2032 | R66: 2033 | S66: 2034 | T66: 2035 | U66: 2036 | V66: 2037 | W66: 2038 | X66: 2039 | Y66: 2040 | Z66: 2041 | AA66: 2042 | AB66: 2043 | AC66: 2044
B67: Solar operation year | E67: =IF(MOD(E3,SolarPV_plant_life)=0, SolarPV_plant_life, MOD(E3,SolarPV_plant_life)) -> 1 | F67: 2 | G67: 3 | H67: 4 | I67: 5 | J67: 6 | K67: 7 | L67: 8 | M67: 9 | N67: 10 | O67: 11 | P67: 12 | Q67: 13 | R67: 14 | S67: 15 | T67: 16 | U67: 17 | V67: 18 | W67: 19 | X67: 20 | Y67: 21 | Z67: 22 | AA67: 23 | AB67: 24 | AC67: 25
B68: Solar PV capital cost per kWh in year n | C68: INR | E68: =IF(E67=1, SolarPV_capex_perkW*(1-SolarPV_capex_inverterpercentage*(1+Storage_inverter_GST)), 0) -> 31616 | F68: 0 | G68: 0 | H68: 0 | I68: 0 | J68: 0 | K68: 0 | L68: 0 | M68: 0 | N68: 0 | O68: 0 | P68: 0 | Q68: 0 | R68: 0 | S68: 0 | T68: 0 | U68: 0 | V68: 0 | W68: 0 | X68: 0 | Y68: 0 | Z68: 0 | AA68: 0 | AB68: 0 | AC68: 0
B69: Gross capital cost | C69: INR | E69: =IF(E67=1, SolarPV_size*E68, 0) -> 861219.84 | F69: 0 | G69: 0 | H69: 0 | I69: 0 | J69: 0 | K69: 0 | L69: 0 | M69: 0 | N69: 0 | O69: 0 | P69: 0 | Q69: 0 | R69: 0 | S69: 0 | T69: 0 | U69: 0 | V69: 0 | W69: 0 | X69: 0 | Y69: 0 | Z69: 0 | AA69: 0 | AB69: 0 | AC69: 0
B70: Net capital cost | C70: INR | E70: =IF(E67=1, SolarPV_size*(E68-SolarPV_capitalsubsidy_perkW), 0) -> 861219.84 | F70: 0 | G70: 0 | H70: 0 | I70: 0 | J70: 0 | K70: 0 | L70: 0 | M70: 0 | N70: 0 | O70: 0 | P70: 0 | Q70: 0 | R70: 0 | S70: 0 | T70: 0 | U70: 0 | V70: 0 | W70: 0 | X70: 0 | Y70: 0 | Z70: 0 | AA70: 0 | AB70: 0 | AC70: 0
B71: Equity | C71: INR | E71: =E70*Storage_equity_percentage -> 258365.952 | F71: 0 | G71: 0 | H71: 0 | I71: 0 | J71: 0 | K71: 0 | L71: 0 | M71: 0 | N71: 0 | O71: 0 | P71: 0 | Q71: 0 | R71: 0 | S71: 0 | T71: 0 | U71: 0 | V71: 0 | W71: 0 | X71: 0 | Y71: 0 | Z71: 0 | AA71: 0 | AB71: 0 | AC71: 0
B72: Debt | C72: INR | E72: =E70-E71 -> 602853.888 | F72: =F70-F71 -> 0 | G72: 0 | H72: 0 | I72: 0 | J72: 0 | K72: 0 | L72: 0 | M72: 0 | N72: 0 | O72: 0 | P72: 0 | Q72: 0 | R72: 0 | S72: 0 | T72: 0 | U72: 0 | V72: 0 | W72: 0 | X72: 0 | Y72: 0 | Z72: 0 | AA72: 0 | AB72: 0 | AC72: 0
B73: Annual depreciation (on gross capital cost) | C73: INR | E73: =IF(E67<=SolarPV_n1_years, $E$69*Storage_solarPV_depreciationrate, $E$69*(1-Storage_salvage_value-Storage_solarPV_depreciationrate*SolarPV_n1_years)/(SolarPV_plant_life-SolarPV_n1_years)) -> 40046.72256 | F73: 40046.72256 | G73: 40046.72256 | H73: 40046.72256 | I73: 40046.72256 | J73: 40046.72256 | K73: 40046.72256 | L73: 40046.72256 | M73: 40046.72256 | N73: 40046.72256 | O73: 40046.72256 | P73: 40046.72256 | Q73: 40046.72256 | R73: 40046.72256 | S73: 40046.72256 | T73: 17439.70176 | U73: 17439.70176 | V73: 17439.70176 | W73: 17439.70176 | X73: 17439.70176 | Y73: 17439.70176 | Z73: 17439.70176 | AA73: 17439.70176 | AB73: 17439.70176 | AC73: 17439.70176
B74: Annual depreciation (on net capital cost) | C74: INR | E74: =IF(E67<=SolarPV_n1_years, $E$70*Storage_solarPV_depreciationrate, $E$70*(1-Storage_salvage_value-Storage_solarPV_depreciationrate*SolarPV_n1_years)/(SolarPV_plant_life-SolarPV_n1_years)) -> 40046.72256 | F74: 40046.72256 | G74: 40046.72256 | H74: 40046.72256 | I74: 40046.72256 | J74: 40046.72256 | K74: 40046.72256 | L74: 40046.72256 | M74: 40046.72256 | N74: 40046.72256 | O74: 40046.72256 | P74: 40046.72256 | Q74: 40046.72256 | R74: 40046.72256 | S74: 40046.72256 | T74: 17439.70176 | U74: 17439.70176 | V74: 17439.70176 | W74: 17439.70176 | X74: 17439.70176 | Y74: 17439.70176 | Z74: 17439.70176 | AA74: 17439.70176 | AB74: 17439.70176 | AC74: 17439.70176
B75: Asset value | C75: INR | E75: =IF(E67=1, E69,#REF! -#REF!) -> 861219.84 | F75: =IF(F67=1, F69, E75-E73) -> 821173.1174 | G75: 781126.3949 | H75: 741079.6723 | I75: 701032.9498 | J75: 660986.2272 | K75: 620939.5046 | L75: 580892.7821 | M75: 540846.0595 | N75: 500799.337 | O75: 460752.6144 | P75: 420705.8918 | Q75: 380659.1693 | R75: 340612.4467 | S75: 300565.7242 | T75: 260519.0016 | U75: 243079.2998 | V75: 225639.5981 | W75: 208199.8963 | X75: 190760.1946 | Y75: 173320.4928 | Z75: 155880.791 | AA75: 138441.0893 | AB75: 121001.3875 | AC75: 103561.6858
B76: Operation and Maintenance Expenses | C76: INR | E76: =IF(E3=1,SolarPV_size*SolarPV_OandM_year1,#REF!+(#REF!* Storage_OandM_escalation)) -> 16344 | F76: =IF(F3=1,SolarPV_size*SolarPV_OandM_year1, E76+(E76*Storage_OandM_escalation)) -> 16971.6096 | G76: 17623.31941 | H76: 18300.05487 | I76: 19002.77698 | J76: 19732.48362 | K76: 20490.21099 | L76: 21277.03509 | M76: 22094.07324 | N76: 22942.48565 | O76: 23823.4771 | P76: 24738.29862 | Q76: 25688.24929 | R76: 26674.67806 | S76: 27698.9857 | T76: 28762.62675 | U76: 29867.11161 | V76: 31014.0087 | W76: 32204.94663 | X76: 33441.61659 | Y76: 34725.77466 | Z76: 36059.24441 | AA76: 37443.91939 | AB76: 38881.7659 | AC76: 40374.82571
B77: Insurance | C77: INR | E77: =Storage_insurance*E75 -> 0 | F77: 0 | G77: 0 | H77: 0 | I77: 0 | J77: 0 | K77: 0 | L77: 0 | M77: 0 | N77: 0 | O77: 0 | P77: 0 | Q77: 0 | R77: 0 | S77: 0 | T77: 0 | U77: 0 | V77: 0 | W77: 0 | X77: 0 | Y77: 0 | Z77: 0 | AA77: 0 | AB77: 0 | AC77: 0
B78: Interest on term loan | C78: INR | E78: =E86 -> 58295.97097 | F78: =F86 -> 58295.97097 | G78: 54131.97304 | H78: 49967.97512 | I78: 45803.97719 | J78: 41639.97926 | K78: 37475.98134 | L78: 33311.98341 | M78: 29147.98548 | N78: 24983.98756 | O78: 20819.98963 | P78: 16655.99171 | Q78: 12491.99378 | R78: 8327.995853 | S78: 4163.997926 | T78: -9.850191418e-12 | U78: -9.850191418e-12 | V78: -9.850191418e-12 | W78: -9.850191418e-12 | X78: -9.850191418e-12 | Y78: -9.850191418e-12 | Z78: -9.850191418e-12 | AA78: -9.850191418e-12 | AB78: -9.850191418e-12 | AC78: -9.850191418e-12
B79: Interest on working capital | C79: INR | E79: =E92+E94 -> 2595.99961 | F79: =F92+F94 -> 2621.3486 | G79: 2589.531171 | H79: 2558.724521 | I79: 2528.967465 | J79: 2500.300307 | K79: 2472.7649 | L79: 2446.404702 | M79: 2421.264841 | N79: 2397.392179 | O79: 2374.835376 | P79: 2353.64496 | Q79: 2333.873402 | R79: 2315.575186 | S79: 2298.806886 | T79: 1967.976726 | U79: 2012.586585 | V79: 2058.909463 | W79: 2107.01114 | X79: 2156.959921 | Y79: 2208.826735 | Z79: 2262.685235 | AA79: 2318.611901 | AB79: 2376.686152 | AC79: 2436.990453
B80: Return on equity | C80: INR | E80: =OFFSET(E71,0,1-E67)*Storage_ROE -> 40305.08851 | F80: 40305.08851 | G80: 40305.08851 | H80: 40305.08851 | I80: 40305.08851 | J80: 40305.08851 | K80: 40305.08851 | L80: 40305.08851 | M80: 40305.08851 | N80: 40305.08851 | O80: 40305.08851 | P80: 40305.08851 | Q80: 40305.08851 | R80: 40305.08851 | S80: 40305.08851 | T80: 40305.08851 | U80: 40305.08851 | V80: 40305.08851 | W80: 40305.08851 | X80: 40305.08851 | Y80: 40305.08851 | Z80: 40305.08851 | AA80: 40305.08851 | AB80: 40305.08851 | AC80: 40305.08851
B82: Debt
B83: Debt opening balance | C83: INR | E83: =IF(E67=1, E72,#REF!) -> 602853.888 | F83: =IF(F67=1, F72, E85) -> 602853.888 | G83: 559792.896 | H83: 516731.904 | I83: 473670.912 | J83: 430609.92 | K83: 387548.928 | L83: 344487.936 | M83: 301426.944 | N83: 258365.952 | O83: 215304.96 | P83: 172243.968 | Q83: 129182.976 | R83: 86121.984 | S83: 43060.992 | T83: -1.018634066e-10 | U83: -1.018634066e-10 | V83: -1.018634066e-10 | W83: -1.018634066e-10 | X83: -1.018634066e-10 | Y83: -1.018634066e-10 | Z83: -1.018634066e-10 | AA83: -1.018634066e-10 | AB83: -1.018634066e-10 | AC83: -1.018634066e-10
B84: Debt repayment | C84: INR | E84: =IF(E67>Storage_moratorium, IF(E83>0, OFFSET(E72,0,1-E67)/(Storage_loan_tenure-Storage_moratorium), 0), 0) -> 0 | F84: 43060.992 | G84: 43060.992 | H84: 43060.992 | I84: 43060.992 | J84: 43060.992 | K84: 43060.992 | L84: 43060.992 | M84: 43060.992 | N84: 43060.992 | O84: 43060.992 | P84: 43060.992 | Q84: 43060.992 | R84: 43060.992 | S84: 43060.992 | T84: 0 | U84: 0 | V84: 0 | W84: 0 | X84: 0 | Y84: 0 | Z84: 0 | AA84: 0 | AB84: 0 | AC84: 0
B85: Debt closing balance | C85: INR | E85: =E83-E84 -> 602853.888 | F85: =F83-F84 -> 559792.896 | G85: =G83-G84 -> 516731.904 | H85: =H83-H84 -> 473670.912 | I85: 430609.92 | J85: 387548.928 | K85: 344487.936 | L85: 301426.944 | M85: 258365.952 | N85: 215304.96 | O85: 172243.968 | P85: 129182.976 | Q85: 86121.984 | R85: 43060.992 | S85: -1.018634066e-10 | T85: -1.018634066e-10 | U85: -1.018634066e-10 | V85: -1.018634066e-10 | W85: -1.018634066e-10 | X85: -1.018634066e-10 | Y85: -1.018634066e-10 | Z85: -1.018634066e-10 | AA85: -1.018634066e-10 | AB85: -1.018634066e-10 | AC85: -1.018634066e-10
B86: Interest | C86: INR | E86: =Storage_interest*E83 -> 58295.97097 | F86: 58295.97097 | G86: 54131.97304 | H86: 49967.97512 | I86: 45803.97719 | J86: 41639.97926 | K86: 37475.98134 | L86: 33311.98341 | M86: 29147.98548 | N86: 24983.98756 | O86: 20819.98963 | P86: 16655.99171 | Q86: 12491.99378 | R86: 8327.995853 | S86: 4163.997926 | T86: -9.850191418e-12 | U86: -9.850191418e-12 | V86: -9.850191418e-12 | W86: -9.850191418e-12 | X86: -9.850191418e-12 | Y86: -9.850191418e-12 | Z86: -9.850191418e-12 | AA86: -9.850191418e-12 | AB86: -9.850191418e-12 | AC86: -9.850191418e-12
B87: Total debt service | C87: INR | E87: =E84+E86 -> 58295.97097 | F87: =F84+F86 -> 101356.963 | G87: 97192.96504 | H87: 93028.96712 | I87: 88864.96919 | J87: 84700.97126 | K87: 80536.97334 | L87: 76372.97541 | M87: 72208.97748 | N87: 68044.97956 | O87: 63880.98163 | P87: 59716.98371 | Q87: 55552.98578 | R87: 51388.98785 | S87: 47224.98993 | T87: -9.850191418e-12 | U87: -9.850191418e-12 | V87: -9.850191418e-12 | W87: -9.850191418e-12 | X87: -9.850191418e-12 | Y87: -9.850191418e-12 | Z87: -9.850191418e-12 | AA87: -9.850191418e-12 | AB87: -9.850191418e-12 | AC87: -9.850191418e-12
B89: Working Capital
B90: Operation and Maintenance wcap | C90: INR | E90: =E76/(12/Storage_workingcapital_OandM) -> 1362 | F90: 1414.3008 | G90: 1468.609951 | H90: 1525.004573 | I90: 1583.564748 | J90: 1644.373635 | K90: 1707.517582 | L90: 1773.086258 | M90: 1841.17277 | N90: 1911.873804 | O90: 1985.289758 | P90: 2061.524885 | Q90: 2140.687441 | R90: 2222.889838 | S90: 2308.248808 | T90: 2396.885562 | U90: 2488.925968 | V90: 2584.500725 | W90: 2683.745553 | X90: 2786.801382 | Y90: 2893.814555 | Z90: 3004.937034 | AA90: 3120.326616 | AB90: 3240.147158 | AC90: 3364.568809
B91: Maintenance spares wcap | C91: INR | E91: =E76*Storage_workingcapital_spares -> 2451.6 | F91: 2545.74144 | G91: 2643.497911 | H91: 2745.008231 | I91: 2850.416547 | J91: 2959.872543 | K91: 3073.531648 | L91: 3191.555264 | M91: 3314.110986 | N91: 3441.372847 | O91: 3573.521565 | P91: 3710.744793 | Q91: 3853.237393 | R91: 4001.201709 | S91: 4154.847854 | T91: 4314.394012 | U91: 4480.066742 | V91: 4652.101305 | W91: 4830.741995 | X91: 5016.242488 | Y91: 5208.866199 | Z91: 5408.886661 | AA91: 5616.587909 | AB91: 5832.264885 | AC91: 6056.223856
B92: Interest on O&M wcap | C92: INR | E92: =(E90+E91)*Storage_interest_workingcap -> 425.97912 | F92: 442.3367182 | G92: 459.3224482 | H92: 476.9604302 | I92: 495.2757107 | J92: 514.294298 | K92: 534.0431991 | L92: 554.5504579 | M92: 575.8451955 | N92: 597.957651 | O92: 620.9192248 | P92: 644.762523 | Q92: 669.5214039 | R92: 695.2310258 | S92: 721.9278972 | T92: 749.6499285 | U92: 778.4364857 | V92: 808.3284468 | W92: 839.3682591 | X92: 871.6000003 | Y92: 905.0694403 | Z92: 939.8241068 | AA92: 975.9133525 | AB92: 1013.388425 | AC92: 1052.302541
B93: Receivables wcap | C93: INR | E93: =IF(Storage_workingcapital_receivables>0, (E76+E77+E74+E78+E80+E92)/(12/Storage_workingcapital_receivables),0) -> 19427.22015 | F93: 19507.71604 | G93: 19070.80325 | H93: 18637.10019 | I93: 18206.73012 | J93: 17779.82103 | K93: 17356.50582 | L93: 16936.9225 | M93: 16521.21437 | N93: 16109.53024 | O93: 15702.02463 | P93: 15298.85799 | Q93: 14900.19694 | R93: 14506.2145 | S93: 14117.09032 | T93: 10907.13337 | U93: 11048.7923 | V93: 11195.89093 | W93: 11348.63815 | X93: 11507.25086 | Y93: 11671.9543 | Z93: 11842.98235 | AA93: 12020.57788 | AB93: 12204.99307 | AC93: 12396.48982
B94: Interest on reveivables wcap | C94: INR | E94: =E93*Storage_interest_workingcap -> 2170.02049 | F94: 2179.011882 | G94: 2130.208723 | H94: 2081.764091 | I94: 2033.691754 | J94: 1986.006009 | K94: 1938.721701 | L94: 1891.854244 | M94: 1845.419646 | N94: 1799.434528 | O94: 1753.916151 | P94: 1708.882437 | Q94: 1664.351998 | R94: 1620.34416 | S94: 1576.878989 | T94: 1218.326797 | U94: 1234.1501 | V94: 1250.581017 | W94: 1267.642881 | X94: 1285.359921 | Y94: 1303.757295 | Z94: 1322.861128 | AA94: 1342.698549 | AB94: 1363.297726 | AC94: 1384.687912
B96: Cost of Generation
B97: Solar PV generation | C97: kWh | E97: =SolarPV_size*24*365*SolarPV_CUF*Storage_chargecontroller_efficiency*(1-Storage_solarPV_degradation)^(E3-1) -> 43524.72576 | F97: 43089.4785 | G97: 42658.58372 | H97: 42231.99788 | I97: 41809.6779 | J97: 41391.58112 | K97: 40977.66531 | L97: 40567.88866 | M97: 40162.20977 | N97: 39760.58767 | O97: 39362.9818 | P97: 38969.35198 | Q97: 38579.65846 | R97: 38193.86187 | S97: 37811.92326 | T97: 37433.80402 | U97: 37059.46598 | V97: 36688.87132 | W97: 36321.98261 | X97: 35958.76278 | Y97: 35599.17516 | Z97: 35243.1834 | AA97: 34890.75157 | AB97: 34541.84405 | AC97: 34196.42561
B98: Energy available from battery storage | C98: kWh | E98: =Storage_capacity*Storage_DoD*Storage_annual_cycles*(1-Storage_cycle_degradation)^((E7-1)*Storage_annual_cycles)*(1-Storage_time_degradation)^(E7-1)*Storage_roundtripefficiency*Storage_inverter_efficiency -> 13051.6992 | F98: 12570.23353 | G98: 12106.52871 | H98: 11659.92955 | I98: 11229.80503 | J98: 10815.54744 | K98: 10416.57143 | L98: 10032.3133 | M98: 9662.230119 | N98: 13051.6992 | O98: 12570.23353 | P98: 12106.52871 | Q98: 11659.92955 | R98: 11229.80503 | S98: 10815.54744 | T98: 10416.57143 | U98: 10032.3133 | V98: 9662.230119 | W98: 13051.6992 | X98: 12570.23353 | Y98: 12106.52871 | Z98: 11659.92955 | AA98: 11229.80503 | AB98: 10815.54744 | AC98: 10416.57143
B99: Total energy available | C99: kWh | E99: =E97-E98*(1/Storage_roundtripefficiency-1) -> 43121.06496 | F99: 42700.70839 | G99: 42284.15499 | H99: 41871.3815 | I99: 41462.36434 | J99: 41057.07966 | K99: 40655.50331 | L99: 40257.61093 | M99: 39863.37791 | N99: 39356.92687 | O99: 38974.21169 | P99: 38594.92326 | Q99: 38219.04208 | R99: 37846.54832 | S99: 37477.42179 | T99: 37111.64202 | U99: 36749.18825 | V99: 36390.03946 | W99: 35918.32181 | X99: 35569.99267 | Y99: 35224.74643 | Z99: 34882.56703 | AA99: 34543.43801 | AB99: 34207.34259 | AC99: 33874.26361
B100: %solar generation passing through battery | C100: % | E100: =IFERROR(E98/E99,"-") -> 0.3026757157 | F100: =IFERROR(F98/F99,"-") -> 0.2943799765 | G100: 0.2863136017 | H100: 0.2784701419 | I100: 0.270843335 | J100: 0.2634271002 | K100: 0.2562155326 | L100: 0.2492028979 | M100: 0.2423836269 | N100: 0.3316239411 | O100: 0.3225269477 | P100: 0.3136818962 | Q100: 0.3050816795 | R100: 0.296719398 | S100: 0.2885883532 | T100: 0.2806820412 | U100: 0.2729941471 | V100: 0.2655185392 | W100: 0.3633716316 | X100: 0.3533943245 | Y100: 0.3436938498 | Z100: 0.3342623706 | AA100: 0.3250922803 | AB100: 0.3161761954 | AC100: 0.3075069484
B101: Operation and Maintenance Expenses | C101: INR | E101: =E16+E45+E76 -> 52569 | F101: 54587.6496 | G101: 56683.81534 | H101: 58860.47385 | I101: 61120.71605 | J101: 63467.75155 | K101: 65904.91321 | L101: 68435.66187 | M101: 71063.59129 | N101: 73792.43319 | O101: 76626.06263 | P101: 79568.50343 | Q101: 82623.93397 | R101: 85796.69303 | S101: 89091.28604 | T101: 92512.39143 | U101: 96064.86726 | V101: 99753.75816 | W101: 103584.3025 | X101: 107561.9397 | Y101: 111692.3182 | Z101: 115981.3032 | AA101: 120434.9852 | AB101: 125059.6887 | AC101: 129861.9807
B102: Insurance | C102: INR | E102: =E17+E46+E77 -> 0 | F102: 0 | G102: 0 | H102: 0 | I102: 0 | J102: 0 | K102: 0 | L102: 0 | M102: 0 | N102: 0 | O102: 0 | P102: 0 | Q102: 0 | R102: 0 | S102: 0 | T102: 0 | U102: 0 | V102: 0 | W102: 0 | X102: 0 | Y102: 0 | Z102: 0 | AA102: 0 | AB102: 0 | AC102: 0
B103: Depreciation (on net capital cost) | C103: INR | E103: =E14+E43+E74 -> 195452.6418 | F103: 195452.6418 | G103: 195452.6418 | H103: 195452.6418 | I103: 195452.6418 | J103: 195452.6418 | K103: 195452.6418 | L103: 195452.6418 | M103: 195452.6418 | N103: 142534.6032 | O103: 142534.6032 | P103: 142534.6032 | Q103: 142534.6032 | R103: 110063.313 | S103: 110063.313 | T103: 87456.29216 | U103: 87456.29216 | V103: 87456.29216 | W103: 76301.6674 | X103: 76301.6674 | Y103: 76301.6674 | Z103: 76301.6674 | AA103: 76301.6674 | AB103: 76301.6674 | AC103: 76301.6674
B104: Interest on term loan | C104: INR | E104: =E18+E47+E78 -> 181212.7189 | F104: 181212.7189 | G104: 164276.0404 | H104: 147339.3619 | I104: 130402.6833 | J104: 113466.0048 | K104: 96529.32624 | L104: 79592.6477 | M104: 62655.96916 | N104: 75217.75421 | O104: 66445.91115 | P104: 53986.76016 | Q104: 41527.60916 | R104: 52613.97603 | S104: 44762.67015 | T104: 34843.40904 | U104: 29088.14586 | V104: 23332.88268 | W104: 39525.51759 | X104: 37457.56235 | Y104: 32646.11985 | Z104: 27834.67736 | AA104: 23023.23486 | AB104: 18211.79237 | AC104: 13400.34987
B105: Interest on working capital | C105: INR | E105: =E19+E48+E79 -> 9131.774351 | F105: 9213.307088 | G105: 9061.492309 | H105: 8912.928612 | I105: 8767.740839 | J105: 8626.058624 | K105: 8488.016582 | L105: 8353.754495 | M105: 8223.417514 | N105: 7424.370268 | O105: 7416.342973 | P105: 7361.226504 | Q105: 7310.673661 | R105: 6833.748447 | S105: 6857.192353 | T105: 6541.221708 | U105: 6604.34743 | V105: 6672.982922 | W105: 6825.1515 | X105: 6956.933418 | Y105: 7056.578576 | Z105: 7162.629812 | AA105: 7275.333117 | AB105: 7394.943933 | AC105: 7521.727507
B106: Return on equity | C106: INR | E106: =E20+E49+E80 -> 125288.1555 | F106: 125288.1555 | G106: 125288.1555 | H106: 125288.1555 | I106: 125288.1555 | J106: 125288.1555 | K106: 125288.1555 | L106: 125288.1555 | M106: 125288.1555 | N106: 100522.5134 | O106: 100522.5134 | P106: 100522.5134 | Q106: 100522.5134 | R106: 78571.92125 | S106: 78571.92125 | T106: 78571.92125 | U106: 78571.92125 | V106: 78571.92125 | W106: 73351.55687 | X106: 73351.55687 | Y106: 73351.55687 | Z106: 73351.55687 | AA106: 73351.55687 | AB106: 73351.55687 | AC106: 73351.55687
B107: Cost of eletricity | C107: INR | E107: =IF(Storage_case="Standalone", E98*Storage_charging_cost*(1+Storage_chargingcost_escalation)^(E3-1)/(Storage_inverter_efficiency^2*Storage_roundtripefficiency), IF(E98/Storage_roundtripefficiency>E97*(1-Storage_solar_directconsumption), (E98-E97*(1-Storage_solar_directconsumption)*Storage_roundtripefficiency)*Storage_charging_cost*(1+Storage_chargingcost_escalation)^(E3-1)/(Storage_inverter_efficiency^2*Storage_roundtripefficiency),0)) -> 0 | F107: 0 | G107: 0 | H107: 0 | I107: 0 | J107: 0 | K107: 0 | L107: 0 | M107: 0 | N107: 0 | O107: 0 | P107: 0 | Q107: 0 | R107: 0 | S107: 0 | T107: 0 | U107: 0 | V107: 0 | W107: 0 | X107: 0 | Y107: 0 | Z107: 0 | AA107: 0 | AB107: 0 | AC107: 0
B108: Total cost of generation | C108: INR | E108: =SUM(E101:E107) -> 563654.2906 | F108: 565754.4729 | G108: 550762.1454 | H108: 535853.5616 | I108: 521031.9375 | J108: 506300.6123 | K108: 491663.0533 | L108: 477122.8614 | M108: 462683.7753 | N108: 399491.6743 | O108: 393545.4334 | P108: 383973.6067 | Q108: 374519.3334 | R108: 333879.6517 | S108: 329346.3828 | T108: 299925.2356 | U108: 297785.574 | V108: 295787.8372 | W108: 299588.1958 | X108: 301629.6597 | Y108: 301048.2409 | Z108: 300631.8346 | AA108: 300386.7775 | AB108: 300319.6492 | AC108: 300437.2824
B109: Cost of generation per kWh | C109: INR | E109: =IF(Storage_case="Standalone",E108/E98,E108/E99) -> 13.07143715 | F109: 13.24929947 | G109: 13.02526077 | H109: 12.79760883 | I109: 12.56638269 | J109: 12.33162749 | K109: 12.09339483 | L109: 11.85174307 | M109: 11.6067378 | N109: 10.15047937 | O109: 10.09758546 | P109: 9.948811251 | Q109: 9.799286246 | R109: 8.821931367 | S109: 8.787861252 | T109: 8.081702109 | U109: 8.103187801 | V109: 8.12826371 | W109: 8.340818299 | X109: 8.479890971 | Y109: 8.546498452 | Z109: 8.618397677 | AA109: 8.695914326 | AB109: 8.779391397 | AC109: 8.869190067
B110: Discount factor | E110: 1 | F110: =E110/(1+Storage_discount_rate) -> 0.9207255317 | G110: 0.8477355048 | H110: 0.7805317234 | I110: 0.718655486 | J110: 0.6616844545 | K110: 0.6092297712 | L110: 0.560933405 | M110: 0.5164657076 | N110: 0.4755231632 | O110: 0.4378263173 | P110: 0.4031178688 | Q110: 0.3711609141 | R110: 0.34173733 | S110: 0.3146462849 | T110: 0.2897028679 | U110: 0.2667368271 | V110: 0.245591407 | W110: 0.2261222788 | X110: 0.2081965554 | Y110: 0.1916918841 | Z110: 0.176495612 | AA110: 0.1625040162 | AB110: 0.1496215967 | AC110: 0.1377604242
B111: Present value | C111: INR | E111: =E109*E110 -> 13.07143715 | F111: =F109*F110 -> 12.1989683 | G111: 11.04197602 | H111: 9.988939675 | I111: 9.030899859 | J111: 8.159646211 | K111: 7.367656162 | L111: 6.648038596 | M111: 5.994482051 | N111: 4.826788058 | O111: 4.420988657 | P111: 4.010543589 | Q111: 3.637112041 | R111: 3.014783271 | S111: 2.765067895 | T111: 2.341292279 | U111: 2.161418604 | V111: 1.996231721 | W111: 1.886044841 | X111: 1.76548409 | Y111: 1.638294391 | Z111: 1.521109372 | AA111: 1.413121002 | AB111: 1.313586559 | AC111: 1.221823386
B112: Levelised cost of generation | C112: INR | D112: =IF(Storage_case="Solar+Storage", SUM(OFFSET(E111,0,0,1,SolarPV_plant_life))/SUM(OFFSET(E110,0,0,1,SolarPV_plant_life)), SUM(OFFSET(E111,0,0,1,Storage_life))/SUM(OFFSET(E110,0,0,1,Storage_life))) -> 11.2067628
B113: Average cost of generation | C113: INR | D113: =IF(Storage_case="Solar+Storage", AVERAGE(OFFSET(E109,0,0,1,SolarPV_plant_life)), AVERAGE(OFFSET(E109,0,0,1,Storage_life))) -> 10.19370807

Sheet Future LCOS
B2: Note
B5: Year | C5: Solar system - Panel cost | D5: Solar system - Inverter cost | E5: Solar system - BoS | F5: Solar system - Installation cost | G5: Solar system - GST | H5: Solar system - Capex | I5: Solar system - O&M | J5: Inverter cost | K5: Inverter - O&M | L5: Battery system - Pack cost | M5: Battery system - BoS cost | N5: Battery system - Installation cost | O5: Battery system - O&M | P5: LCOS (INR/kWh)
B6: =Storage_base_year -> 2020 | C6: =SolarPV_capex_perkW*SolarPV_capex_panelpercentage -> 18620 | D6: =SolarPV_capex_perkW*SolarPV_capex_inverterpercentage -> 6080 | E6: =SolarPV_capex_perkW*SolarPV_capex_BoSpercentage -> 7600 | F6: =SolarPV_capex_perkW*SolarPV_capex_installationpercentage -> 2584 | G6: =IF(ISNUMBER(B6),SUM(C6:F6)*SolarPV_capex_taxes/(1-SolarPV_capex_taxes),"") -> 3116 | H6: =IF(ISNUMBER(B6),SUM(C6:G6),"") -> 38000 | I6: =SolarPV_OandM_year1 -> 600 | J6: =Storage_invertercapex_perkW -> 35700 | K6: =Storage_OandMpower_year1 -> 750 | L6: =Storage_pack_capexperkWh -> 17900 | M6: =Storage_enclosure_capexperkWh -> 895 | N6: =Storage_installation_cost -> 15000 | O6: =Storage_OndMenergy_year1 -> 400 | P6: 28.60189011
B7: =IF(B6<2030,B6+1,"") -> 2021 | C7: =IFERROR(C6+VLOOKUP(B7,Table_module_costreduction,2)*C6,"") -> 16199.4 | D7: =IFERROR(D6+VLOOKUP(B7,Table_inverter_costreduction,2)*D6,"") -> 5411.2 | E7: =IFERROR(E6+VLOOKUP(B7,Table_BoS_costreduction,2)*E6,"") -> 7144 | F7: =IF(ISNUMBER(B7),F6*(1+Storage_OandM_escalation),"") -> 2683.2256 | G7: 2808.171786 | H7: =IF(ISNUMBER(B7),SUM(C7:G7),"") -> 34245.99739 | I7: =IF(ISNUMBER(B7),I6*(1+Storage_OandM_escalation),"") -> 623.04 | J7: =IFERROR(J6+VLOOKUP(B7,Table_inverter_costreduction,2)*J6,"") -> 31773 | K7: =IF(ISNUMBER(B7),K6*(1+Storage_OandM_escalation),"") -> 778.8 | L7: =IF(Storage_battery_technology="Li-ion",IFERROR(L6*VLOOKUP(B7,Table_Liionpack_costreduction,2)/VLOOKUP(B6,Table_Liionpack_costreduction,2),""),IFERROR(L6*VLOOKUP(B7,Table_Pbacidpack_costreduction,2)/VLOOKUP(B6,Table_Pbacidpack_costreduction,2),"")) -> 16078.86467 | M7: =IFERROR(M6+VLOOKUP(B7,Table_BoS_costreduction,2)*M6,"") -> 841.3 | N7: =IF(ISNUMBER(B7),N6*(1+Storage_OandM_escalation),"") -> 15576 | O7: =IF(ISNUMBER(B7),O6*(1+Storage_OandM_escalation),"") -> 415.36 | P7: 27.0346161
B8: =IF(B7<2030,B7+1,"") -> 2022 | C8: 14093.478 | D8: 4815.968 | E8: 6715.36 | F8: 2786.261463 | G8: 2537.807769 | H8: 30948.87523 | I8: 646.964736 | J8: 28277.97 | K8: 808.70592 | L8: 14424.99256 | M8: 790.822 | N8: 16174.1184 | O8: 431.309824 | P8: 25.62787175
B9: 2023 | C9: 12594.44443 | D9: 4382.53088 | E9: 6379.592 | F9: 2893.253903 | G9: 2344.755272 | H9: 28594.57649 | I9: 671.8081819 | J9: 25732.9527 | K9: 839.7602273 | L9: 12943.46594 | M9: 751.2809 | N9: 16795.20455 | O9: 447.8721212 | P9: 24.40502747
B10: 2024 | C10: 11254.85352 | D10: 3988.103101 | E10: 6060.6124 | F10: 3004.354853 | G10: 2171.296033 | H10: 26479.21991 | I10: 697.605616 | J10: 23416.98696 | K10: 872.0070201 | L10: 11632.44913 | M10: 713.716855 | N10: 17440.1404 | O10: 465.0704107 | P10: 23.33999412
B11: 2025 | C11: 10323.77019 | D11: 3708.935884 | E11: 5818.187904 | F11: 3119.722079 | G11: 2051.841521 | H11: 25022.45757 | I11: 724.3936717 | J11: 21777.79787 | K11: 905.4920896 | L11: 10487.05783 | M11: 685.1681808 | N11: 18109.84179 | O11: 482.9291145 | P11: 22.4454096
B12: 2026 | C12: 9469.712835 | D12: 3449.310372 | E12: 5585.460388 | F12: 3239.519407 | G12: 1942.274778 | H12: 23686.27778 | I12: 752.2103887 | J12: 20253.35202 | K12: 940.2629859 | L12: 9500.925469 | M12: 657.7614536 | N12: 18805.25972 | O12: 501.4735925 | P12: 21.69602324
B13: 2027 | C13: 8910.138894 | D13: 3276.844853 | E13: 5417.896576 | F13: 3363.916953 | G13: 1873.029822 | H13: 22841.8271 | I13: 781.0952676 | J13: 19240.68442 | K13: 976.3690845 | L13: 8665.910634 | M13: 638.02861 | N13: 19527.38169 | O13: 520.7301784 | P13: 21.10007696
B14: 2028 | C14: 8383.630687 | D14: 3113.002611 | E14: 5255.359679 | F14: 3493.091364 | G14: 1808.38444 | H14: 22053.46878 | I14: 811.0893259 | J14: 18278.6502 | K14: 1013.861657 | L14: 7970.794738 | M14: 618.8877517 | N14: 20277.23315 | O14: 540.7262173 | P14: 20.63125994
B15: 2029 | C15: 7888.234328 | D15: 3019.612532 | E15: 5150.252485 | F15: 3627.226072 | G15: 1758.384188 | H15: 21443.70961 | I15: 842.235156 | J15: 17730.29069 | K15: 1052.793945 | L15: 7400.389165 | M15: 606.5099966 | N15: 21055.8789 | O15: 561.490104 | P15: 20.29070459
B16: 2030 | C16: 7608.560566 | D16: 2929.024156 | E16: 5047.247436 | F16: 3766.511553 | G16: 1728.551399 | H16: 21079.89511 | I16: 874.576986 | J16: 17198.38197 | K16: 1093.221233 | L16: 6936.272221 | M16: 594.3797967 | N16: 21864.42465 | O16: 583.051324 | P16: 20.04796762
C31: 0 | D31: 0 | E31: 0 | F31: 0 | G31: 0 | H31: 0 | I31: 600 | J31: 4500 | K31: 750 | L31: 17900 | M31: 895 | N31: 15000 | O31: 400
C32: 0 | D32: 0 | E32: 0 | F32: 0 | G32: 0 | H32: 0 | I32: 623.04 | J32: 4005 | K32: 778.8 | L32: 16078.86467 | M32: 841.3 | N32: 15576 | O32: 415.36
C33: 0 | D33: 0 | E33: 0 | F33: 0 | G33: 0 | H33: 0 | I33: 646.964736 | J33: 3564.45 | K33: 808.70592 | L33: 14424.99256 | M33: 790.822 | N33: 16174.1184 | O33: 431.309824
C34: 0 | D34: 0 | E34: 0 | F34: 0 | G34: 0 | H34: 0 | I34: 671.8081819 | J34: 3243.6495 | K34: 839.7602273 | L34: 12943.46594 | M34: 751.2809 | N34: 16795.20455 | O34: 447.8721212
C35: 0 | D35: 0 | E35: 0 | F35: 0 | G35: 0 | H35: 0 | I35: 697.605616 | J35: 2951.721045 | K35: 872.0070201 | L35: 11632.44913 | M35: 713.716855 | N35: 17440.1404 | O35: 465.0704107
C36: 0 | D36: 0 | E36: 0 | F36: 0 | G36: 0 | H36: 0 | I36: 724.3936717 | J36: 2745.100572 | K36: 905.4920896 | L36: 10487.05783 | M36: 685.1681808 | N36: 18109.84179 | O36: 482.9291145
C37: 0 | D37: 0 | E37: 0 | F37: 0 | G37: 0 | H37: 0 | I37: 752.2103887 | J37: 2552.943532 | K37: 940.2629859 | L37: 9500.925469 | M37: 657.7614536 | N37: 18805.25972 | O37: 501.4735925
C38: 0 | D38: 0 | E38: 0 | F38: 0 | G38: 0 | H38: 0 | I38: 781.0952676 | J38: 2425.296355 | K38: 976.3690845 | L38: 8665.910634 | M38: 638.02861 | N38: 19527.38169 | O38: 520.7301784
C39: 0 | D39: 0 | E39: 0 | F39: 0 | G39: 0 | H39: 0 | I39: 811.0893259 | J39: 2304.031537 | K39: 1013.861657 | L39: 7970.794738 | M39: 618.8877517 | N39: 20277.23315 | O39: 540.7262173
C40: 0 | D40: 0 | E40: 0 | F40: 0 | G40: 0 | H40: 0 | I40: 842.235156 | J40: 2234.910591 | K40: 1052.793945 | L40: 7400.389165 | M40: 606.5099966 | N40: 21055.8789 | O40: 561.490104
C41: 0 | D41: 0 | E41: 0 | F41: 0 | G41: 0 | H41: 0 | I41: 874.576986 | J41: 2167.863274 | K41: 1093.221233 | L41: 6936.272221 | M41: 594.3797967 | N41: 21864.42465 | O41: 583.051324
C56: 18620

Sheet Cost projections
B2: Go to cost projections for:
C8: Li-ion battery pack (BtM application) cost reduction curve (central estimate from Schmidt et al. 2019)
C9: Year | D9: Cost (%)
C10: 2015 | D10: 1
C11: 2016 | D11: 0.8795073533
C12: 2017 | D12: 0.7497636318
C13: 2018 | D13: 0.6838204868
C14: 2019 | D14: 0.6190650728
C15: 2020 | D15: 0.5576892202
C16: 2021 | D16: 0.5009502514
C17: 2022 | D17: 0.4494225055
C18: 2023 | D18: 0.4032643255
C19: 2024 | D19: 0.3624185187
C20: 2025 | D20: 0.3267329109
C21: 2026 | D21: 0.2960091461
C22: 2027 | D22: 0.2699935723
C23: 2028 | D23: 0.2483366649
C24: 2029 | D24: 0.2305652102
C25: 2030 | D25: 0.2161052651
C26: 2031 | D26: 0.204351258
C27: 2032 | D27: 0.1947399525
C28: 2033 | D28: 0.1867953037
C29: 2034 | D29: 0.1801397268
C30: 2035 | D30: 0.1744845383
C31: 2036 | D31: 0.1696127914
C32: 2037 | D32: 0.1653621265
C33: 2038 | D33: 0.1616105461
C34: 2039 | D34: 0.1582655682
C35: 2040 | D35: 0.1552562799
C36: 2041 | D36: 0.1525276173
C37: 2042 | D37: 0.1500362669
C38: 2043 | D38: 0.1477477229
C39: 2044 | D39: 0.1456341598
C40: 2045 | D40: 0.1436728798
C41: 2046 | D41: 0.1418451685
C42: 2047 | D42: 0.1401354419
C43: 2048 | D43: 0.1385306034
C44: 2049 | D44: 0.1370195533
C45: 2050 | D45: 0.1355928114
C46: 2051 | D46: 0.1341565001
C47: 2052 | D47: 0.1327203786
C48: 2053 | D48: 0.1312842572
C49: 2054 | D49: 0.1298481358
C50: 2055 | D50: 0.1284120144
C51: 2056 | D51: 0.126975893
C52: 2057 | D52: 0.1255397715
C53: 2058 | D53: 0.1241036501
C54: 2059 | D54: 0.1226675287
C55: 2060 | D55: 0.1212314073
C60: Pb acid storage (BtM application) cost reduction curve (assumed)
C61: Year | D61: Cost (%)
C62: 2015 | D62: 1
C63: 2016 | D63: 0.9576267431
C64: 2017 | D64: 0.8279512348
C65: 2018 | D65: 0.7334236363
C66: 2019 | D66: 0.6570083045
C67: 2020 | D67: 0.5921280616
C68: 2021 | D68: 0.5356386668
C69: 2022 | D69: 0.485838405
C70: 2023 | D70: 0.4417345006
C71: 2024 | D71: 0.4027262847
C72: 2025 | D72: 0.3684463029
C73: 2026 | D73: 0.3386569581
C74: 2027 | D74: 0.3131569845
C75: 2028 | D75: 0.2916904299
C76: 2029 | D76: 0.2738853739
C77: 2030 | D77: 0.2592553946
C78: 2031 | D78: 0.2472591231
C79: 2032 | D79: 0.2373746033
C80: 2033 | D80: 0.229149608
C81: 2034 | D81: 0.2222190245
C82: 2035 | D82: 0.2163000042
C83: 2036 | D83: 0.2111778281
C84: 2037 | D84: 0.2066905183
C85: 2038 | D85: 0.2027155779
C86: 2039 | D86: 0.1991596504
C87: 2040 | D87: 0.1959508303
C88: 2041 | D88: 0.193033067
C89: 2042 | D89: 0.1903621223
C90: 2043 | D90: 0.1879026483
C91: 2044 | D91: 0.1856260638
C92: 2045 | D92: 0.1835089974
C93: 2046 | D93: 0.1815321361
C94: 2047 | D94: 0.1796793641
C95: 2048 | D95: 0.1779371113
C96: 2049 | D96: 0.1762938558
C97: 2050 | D97: 0.1747397393
C98: 2051 | D98: 0.1731755069
C99: 2052 | D99: 0.1716114752
C100: 2053 | D100: 0.1700474436
C101: 2054 | D101: 0.1684834119
C102: 2055 | D102: 0.1669193802
C103: 2056 | D103: 0.1653553485
C104: 2057 | D104: 0.1637913169
C105: 2058 | D105: 0.1622272852
C106: 2059 | D106: 0.1606632535
C107: 2060 | D107: 0.1590992218
C112: Inverter cost reduction curve
C113: Year | D113: Reduction (%) | E113: Cost (%)
C114: 2020 | E114: 1
C115: 2021 | D115: -0.11 | E115: =E114+D115*E114 -> 0.89
C116: 2022 | D116: -0.11 | E116: 0.7921
C117: 2023 | D117: -0.09 | E117: 0.720811
C118: 2024 | D118: -0.09 | E118: 0.65593801
C119: 2025 | D119: -0.07 | E119: 0.6100223493
C120: 2026 | D120: -0.07 | E120: 0.5673207848
C121: 2027 | D121: -0.05 | E121: 0.5389547456
C122: 2028 | D122: -0.05 | E122: 0.5120070083
C123: 2029 | D123: -0.03 | E123: 0.4966467981
C124: 2030 | D124: -0.03 | E124: 0.4817473941
C125: 2031 | D125: -0.03 | E125: 0.4672949723
C126: 2032 | D126: -0.02 | E126: 0.4579490729
C127: 2033 | D127: -0.02 | E127: 0.4487900914
C128: 2034 | D128: -0.02 | E128: 0.4398142896
C129: 2035 | D129: -0.02 | E129: 0.4310180038
C130: 2036 | D130: -0.01 | E130: 0.4267078237
C131: 2037 | D131: -0.01 | E131: 0.4224407455
C132: 2038 | D132: -0.01 | E132: 0.4182163381
C133: 2039 | D133: -0.01 | E133: 0.4140341747
C134: 2040 | D134: -0.01 | E134: 0.4098938329
C135: 2041 | D135: -0.01 | E135: 0.4057948946
C136: 2042 | D136: -0.009 | E136: 0.4021427405
C137: 2043 | D137: -0.009 | E137: 0.3985234559
C138: 2044 | D138: -0.009 | E138: 0.3949367448
C139: 2045 | D139: -0.009 | E139: 0.3913823141
C140: 2046 | D140: -0.009 | E140: 0.3878598733
C141: 2047 | D141: -0.009 | E141: 0.3843691344
C142: 2048 | D142: -0.008 | E142: 0.3812941813
C143: 2049 | D143: -0.008 | E143: 0.3782438279
C144: 2050 | D144: -0.008 | E144: 0.3752178772
C145: 2051 | D145: -0.008 | E145: 0.3722161342
C146: 2052 | D146: -0.008 | E146: 0.3692384052
C147: 2053 | D147: -0.008 | E147: 0.3662844979
C148: 2054 | D148: -0.008 | E148: 0.3633542219
C149: 2055 | D149: -0.006 | E149: 0.3611740966
C150: 2056 | D150: -0.006 | E150: 0.359007052
C151: 2057 | D151: -0.006 | E151: 0.3568530097
C152: 2058 | D152: -0.006 | E152: 0.3547118916
C153: 2059 | D153: -0.006 | E153: 0.3525836203
C154: 2060 | D154: -0.006 | E154: 0.3504681186
C159: Module cost reduction curve (assumed)
C160: Year | D160: Reduction (%) | E160: Cost (%)
C161: 2020 | E161: 1
C162: 2021 | D162: -0.13 | E162: =E161+D162*E161 -> 0.87
C163: 2022 | D163: -0.13 | E163: 0.7569
C164: 2023 | D164: -0.1063636364 | E164: 0.6763933636
C165: 2024 | D165: -0.1063636364 | E165: 0.6044497059
C166: 2025 | D166: -0.08272727273 | E166: 0.5544452302
C167: 2026 | D167: -0.08272727273 | E167: 0.5085774884
C168: 2027 | D168: -0.05909090909 | E168: 0.4785251823
C169: 2028 | D169: -0.05909090909 | E169: 0.4502486943
C170: 2029 | D170: -0.05909090909 | E170: 0.4236430896
C171: 2030 | D171: -0.03545454545 | E171: 0.4086230164
C172: 2031 | D172: -0.03545454545 | E172: 0.3941354731
C173: 2032 | D173: -0.02363636364 | E173: 0.3848195437
C174: 2033 | D174: -0.02363636364 | E174: 0.3757238091
C175: 2034 | D175: -0.02363636364 | E175: 0.3668430645
C176: 2035 | D176: -0.01181818182 | E176: 0.3625076465
C177: 2036 | D177: -0.01181818182 | E177: 0.3582234652
C178: 2037 | D178: -0.01181818182 | E178: 0.3539899151
C179: 2038 | D179: -0.01181818182 | E179: 0.349806398
C180: 2039 | D180: -0.01181818182 | E180: 0.3456723223
C181: 2040 | D181: -0.01181818182 | E181: 0.341587104
C182: 2041 | D182: -0.01181818182 | E182: 0.3375501655
C183: 2042 | D183: -0.01063636364 | E183: 0.3339598592
C184: 2043 | D184: -0.01063636364 | E184: 0.3304077407
C185: 2044 | D185: -0.01063636364 | E185: 0.3268934038
C186: 2045 | D186: -0.01063636364 | E186: 0.3234164467
C187: 2046 | D187: -0.01063636364 | E187: 0.3199764718
C188: 2047 | D188: -0.01063636364 | E188: 0.3165730856
C189: 2048 | D189: -0.009454545455 | E189: 0.313580031
C190: 2049 | D190: -0.009454545455 | E190: 0.3106152744
C191: 2050 | D191: -0.009454545455 | E191: 0.3076785481
C192: 2051 | D192: -0.009454545455 | E192: 0.3047695873
C193: 2052 | D193: -0.008272727273 | E193: 0.3022483116
C194: 2053 | D194: -0.008272727273 | E194: 0.2997478938
C195: 2054 | D195: -0.008272727273 | E195: 0.2972681612
C196: 2055 | D196: -0.008272727273 | E196: 0.2948089428
C197: 2056 | D197: -0.007090909091 | E197: 0.2927184794
C198: 2057 | D198: -0.007090909091 | E198: 0.2906428392
C199: 2058 | D199: -0.007090909091 | E199: 0.2885819173
C200: 2059 | D200: -0.007090909091 | E200: 0.2865356092
C201: 2060 | D201: -0.007090909091 | E201: 0.2845038112
C206: BoS cost reduction curve (assumed)
C207: Year | D207: Reduction (%) | E207: Cost (%)
C208: 2020 | E208: 1
C209: 2021 | D209: -0.06 | E209: =E208+D209*E208 -> 0.94
C210: 2022 | D210: -0.06 | E210: 0.8836
C211: 2023 | D211: -0.05 | E211: 0.83942
C212: 2024 | D212: -0.05 | E212: 0.797449
C213: 2025 | D213: -0.04 | E213: 0.76555104
C214: 2026 | D214: -0.04 | E214: 0.7349289984
C215: 2027 | D215: -0.03 | E215: 0.7128811284
C216: 2028 | D216: -0.03 | E216: 0.6914946946
C217: 2029 | D217: -0.02 | E217: 0.6776648007
C218: 2030 | D218: -0.02 | E218: 0.6641115047
C219: 2031 | D219: -0.02 | E219: 0.6508292746
C220: 2032 | D220: -0.01 | E220: 0.6443209818
C221: 2033 | D221: -0.01 | E221: 0.637877772
C222: 2034 | D222: -0.01 | E222: 0.6314989943
... 69 more rows

Sheet Tariff rates in TN (hidden)
B3: Tariff Category | C3: Tariff (Rs/kWh)
B4: Solar PV | C4: 0
B5: Domestic (1-50 kWh) | C5: 2.5
B6: Domestic (51-100 kWh) | C6: 2.5
B7: Domestic (101-250 kWh) | C7: 3
B8: Domestic (Above 250 kWh) | C8: 6.6
B9: Public Lighting | C9: 6.35
B10: LT Govt. Educational Institution | C10: 5.75
B11: LT Pvt. Educational Institution | C11: 7.5
B12: LT Industries | C12: 6.35
B13: LT Commercial (Above 50 kWh) | C13: 8.05
B14: HT Industries | C14: 6.35
B15: HT Govt. Educational Institution | C15: 6.35
B16: HT Pvt. Educational Institution | C16: 6.35
B17: HT Commercial | C17: 8
B18: Custom | C18: 3.7

Sheet Storage references
B1: REFERENCES
B3: 1. The cost reduction curves for Pb acid and Li-ion have been taken from the following: Schmidt, O., Melchior, S., Hawkes, A., and Staffell, I. (2018). The future cost of electrical energy storage based on experience rates:dataset. Figshare Digital Repository (2018). Available at: https://doi.org/10.6084/m9.figshare
B4: 2. Recent price trends in panel prices, inverter cost and balance of system costs for residential, and for commercial and industrial segments were noted from, and helped in making assumptions on respective cost reductions: Lawrence Berkeley National Lab (LBNL). (2020). Distributed Solar 2020 Data Update. Available at: https://emp.lbl.gov/tracking-the-sun/

Sheet Results (hidden)
C4: Parameter | E4: Unit | G4: Solar+Storage (LT Industry) | I4: Solar+Storage (LT Industry) | K4: Standalone Storage (LT Industry)
C5: Installation year | G5: 2020 | I5: 2025 | K5: 2020
C6: Solar PV capital cost (w/o inverter) | E6: INR/kW | G6: 41000 | I6: 35000 | K6: 41000
C7: Solar PV capacity | E7: kW | G7: 24 | I7: 24 | K7: 24
C8: Inverter capital cost | E8: INR/kVA | G8: 20000 | I8: 16000
C9: Inverter replacement year | G9: 13 | I9: 13 | K9: 13
C10: Inverter cost improvement in replacement year | G10: 0.6 | I10: 0.7 | K10: 0.6
C11: Inverter capacity | E11: kVA | G11: 12 | I11: 12 | K11: 12
C12: Storage capital cost | E12: INR/kWh | G12: 20000 | I12: 12000 | K12: 20000
C13: Storage rack and others | E13: INR | G13: 64000 | I13: 64000 | K13: 64000
C14: EPC cost | E14: INR | G14: 14000 | I14: 14000 | K14: 14000
C15: Storage duration | E15: Hr | G15: 4 | I15: 4 | K15: 4
C16: Storage life cycles | G16: 4000 | I16: 4000 | K16: 4000
C17: Storage cycles/year at 100% DoD | G17: 365 | I17: 365 | K17: 760
C18: LCOS | E18: INR/kWh | G18: 9.96 | I18: 7.77 | K18: 12.49
